Effective Date,Department,Supplier Name,Payment Date,Amount**,Purpose of Spend,Merchant Category,Card Transaction
Statement 19/09/2016 - 17/10/2016,Adults and Communities,ALDI,22/09/2016,34.89,Cleaning Materials - General,"Grocery Stores, Supermarkets",GPC
Statement 19/09/2016 - 17/10/2016,Adults and Communities,ALDI,02/10/2016,14.12,Materials - General,"Grocery Stores, Supermarkets",GPC
Statement 19/09/2016 - 17/10/2016,Adults and Communities,ALDI,07/10/2016,3.57,Other Services - General,"Grocery Stores, Supermarkets",GPC
Statement 19/09/2016 - 17/10/2016,Adults and Communities,ALDI,12/10/2016,13.77,Provisions - General,"Grocery Stores, Supermarkets",GPC
Statement 19/09/2016 - 17/10/2016,Adults and Communities,Amazon Svcs Europe SAR,28/09/2016,7.32,General Equipment - General,Book Stores,GPC
Statement 19/09/2016 - 17/10/2016,Adults and Communities,Amazon Svcs Europe SAR,28/09/2016,4.99,Postal Services - General,Book Stores,GPC
Statement 19/09/2016 - 17/10/2016,Adults and Communities,Amazon UK Marketplace,22/09/2016,6.59,Books - General,Book Stores,GPC
Statement 19/09/2016 - 17/10/2016,Adults and Communities,Amazon UK Marketplace,29/09/2016,4.72,Books - General,Book Stores,GPC
Statement 19/09/2016 - 17/10/2016,Adults and Communities,Amazon UK Marketplace,30/09/2016,9.35,Books - General,Miscellaneous and Specialty Retail Stores,GPC
Statement 19/09/2016 - 17/10/2016,Adults and Communities,Amazon UK Marketplace,02/10/2016,20.47,Books - General,Miscellaneous and Specialty Retail Stores,GPC
Statement 19/09/2016 - 17/10/2016,Adults and Communities,Amazon UK Marketplace,10/10/2016,28.43,Books - General,Book Stores,GPC
Statement 19/09/2016 - 17/10/2016,Adults and Communities,Amazon UK Marketplace,10/10/2016,77.01,Books - General,Book Stores,GPC
Statement 19/09/2016 - 17/10/2016,Adults and Communities,Amazon UK Marketplace,12/10/2016,25.84,Books - General,Book Stores,GPC
Statement 19/09/2016 - 17/10/2016,Adults and Communities,Amazon UK Marketplace,13/10/2016,4.13,Books - General,Book Stores,GPC
Statement 19/09/2016 - 17/10/2016,Adults and Communities,Amazon UK Marketplace,13/10/2016,6,Books - General,Book Stores,GPC
Statement 19/09/2016 - 17/10/2016,Adults and Communities,Amazon UK Marketplace,08/10/2016,100.73,Display/Conservn/Exhibitions - Exhibitions,Miscellaneous and Specialty Retail Stores,GPC
Statement 19/09/2016 - 17/10/2016,Adults and Communities,Amazon UK Marketplace,05/10/2016,20,General Equipment - General,Miscellaneous and Specialty Retail Stores,GPC
Statement 19/09/2016 - 17/10/2016,Adults and Communities,Amazon UK Marketplace,11/10/2016,29.15,General Equipment - General,Miscellaneous and Specialty Retail Stores,GPC
Statement 19/09/2016 - 17/10/2016,Adults and Communities,Amazon UK Marketplace,12/10/2016,5.41,General Equipment - General,Miscellaneous and Specialty Retail Stores,GPC
Statement 19/09/2016 - 17/10/2016,Adults and Communities,Amazon UK Marketplace,13/10/2016,7.49,General Equipment - General,Miscellaneous and Specialty Retail Stores,GPC
Statement 19/09/2016 - 17/10/2016,Adults and Communities,Amazon UK Marketplace,22/09/2016,65.33,IT Equipment - General,Book Stores,GPC
Statement 19/09/2016 - 17/10/2016,Adults and Communities,Amazon UK Marketplace,28/09/2016,34,IT Equipment - General,Miscellaneous and Specialty Retail Stores,GPC
Statement 19/09/2016 - 17/10/2016,Adults and Communities,Amazon UK Marketplace,04/10/2016,31.98,IT Equipment - General,Miscellaneous and Specialty Retail Stores,GPC
Statement 19/09/2016 - 17/10/2016,Adults and Communities,Amazon UK Marketplace,04/10/2016,39.98,IT Equipment - General,Miscellaneous and Specialty Retail Stores,GPC
Statement 19/09/2016 - 17/10/2016,Adults and Communities,Amazon UK Marketplace,10/10/2016,28.43,Materials - General,Miscellaneous and Specialty Retail Stores,GPC
Statement 19/09/2016 - 17/10/2016,Adults and Communities,Amazon UK Marketplace,10/10/2016,25.02,Materials - General,Miscellaneous and Specialty Retail Stores,GPC
Statement 19/09/2016 - 17/10/2016,Adults and Communities,Amazon UK Marketplace,10/10/2016,21.85,Materials - General,Miscellaneous and Specialty Retail Stores,GPC
Statement 19/09/2016 - 17/10/2016,Adults and Communities,Amazon UK Marketplace,10/10/2016,21.85,Materials - General,Miscellaneous and Specialty Retail Stores,GPC
Statement 19/09/2016 - 17/10/2016,Adults and Communities,Amazon UK Marketplace,12/10/2016,7.2,Materials - General,Miscellaneous and Specialty Retail Stores,GPC
Statement 19/09/2016 - 17/10/2016,Adults and Communities,Amazon UK Marketplace,21/09/2016,112.8,Operational Equipment - DDA,Miscellaneous and Specialty Retail Stores,GPC
Statement 19/09/2016 - 17/10/2016,Adults and Communities,Amazon UK Marketplace,24/09/2016,35.89,Other Equipment & Materials - General,Book Stores,GPC
Statement 19/09/2016 - 17/10/2016,Adults and Communities,Amazon UK Marketplace,12/10/2016,6.99,Other Equipment & Materials - General,Book Stores,GPC
Statement 19/09/2016 - 17/10/2016,Adults and Communities,Amazon UK Marketplace,13/10/2016,32.99,Other Equipment & Materials - General,Miscellaneous and Specialty Retail Stores,GPC
Statement 19/09/2016 - 17/10/2016,Adults and Communities,Amazon UK Marketplace,06/10/2016,4.08,Other Expenditure - General,Book Stores,GPC
Statement 19/09/2016 - 17/10/2016,Adults and Communities,Amazon UK Marketplace,14/10/2016,36.13,Other Expenditure - General,Miscellaneous and Specialty Retail Stores,GPC
Statement 19/09/2016 - 17/10/2016,Adults and Communities,Amazon UK Marketplace,20/09/2016,11.39,Stationery - General,Miscellaneous and Specialty Retail Stores,GPC
Statement 19/09/2016 - 17/10/2016,Adults and Communities,Amazon UK Marketplace,28/09/2016,3.49,Stationery - General,Miscellaneous and Specialty Retail Stores,GPC
Statement 19/09/2016 - 17/10/2016,Adults and Communities,Amazon UK Marketplace,05/10/2016,4.9,Stationery - General,Miscellaneous and Specialty Retail Stores,GPC
Statement 19/09/2016 - 17/10/2016,Adults and Communities,Amazon UK Marketplace,12/10/2016,14.54,Stationery - General,Miscellaneous and Specialty Retail Stores,GPC
Statement 19/09/2016 - 17/10/2016,Adults and Communities,Amazon UK Marketplace,13/10/2016,10.47,Stationery - General,Book Stores,GPC
Statement 19/09/2016 - 17/10/2016,Adults and Communities,Amazon UK Retail,28/09/2016,7.28,General Equipment - General,Direct Marketers - Other,GPC
Statement 19/09/2016 - 17/10/2016,Adults and Communities,Amazon UK Retail,10/10/2016,21.49,Materials - General,Direct Marketers - Other,GPC
Statement 19/09/2016 - 17/10/2016,Adults and Communities,Amazon UK Retail,10/10/2016,20.06,Other Equipment & Materials - General,Direct Marketers - Other,GPC
Statement 19/09/2016 - 17/10/2016,Adults and Communities,Amazon UK Retail,29/09/2016,59.99,Other Expenditure - General,Direct Marketers - Other,GPC
Statement 19/09/2016 - 17/10/2016,Adults and Communities,Amazon UK Retail,05/10/2016,12.94,Other Expenditure - General,Direct Marketers - Other,GPC
Statement 19/09/2016 - 17/10/2016,Adults and Communities,Amazon UK Retail,10/10/2016,44.95,Other Expenditure - General,Direct Marketers - Other,GPC
Statement 19/09/2016 - 17/10/2016,Adults and Communities,Amazon UK Retail,10/10/2016,44.95,Other Expenditure - General,Direct Marketers - Other,GPC
Statement 19/09/2016 - 17/10/2016,Adults and Communities,Amazon UK Retail,10/10/2016,53.72,Other Expenditure - General,Direct Marketers - Other,GPC
Statement 19/09/2016 - 17/10/2016,Adults and Communities,Amazon UK Retail,11/10/2016,9.63,Other Expenditure - General,Direct Marketers - Other,GPC
Statement 19/09/2016 - 17/10/2016,Adults and Communities,Amazon UK Retail,13/10/2016,36.48,Other Expenditure - General,Direct Marketers - Other,GPC
Statement 19/09/2016 - 17/10/2016,Adults and Communities,Amazon UK Retail,28/09/2016,3.33,Postal Services - General,Direct Marketers - Other,GPC
Statement 19/09/2016 - 17/10/2016,Adults and Communities,Amazon UK Retail,29/09/2016,60,Publicity/Marketing - General,Direct Marketers - Other,GPC
Statement 19/09/2016 - 17/10/2016,Adults and Communities,AMAZON UK RETAIL AMAZON.C,29/09/2016,28.33,General Equipment - General,Miscellaneous and Specialty Retail Stores,GPC
Statement 19/09/2016 - 17/10/2016,Adults and Communities,AMAZON UK RETAIL AMAZON.C,14/10/2016,161.91,General Equipment - General,Miscellaneous and Specialty Retail Stores,GPC
Statement 19/09/2016 - 17/10/2016,Adults and Communities,AMAZON UK RETAIL AMAZON.C,22/09/2016,8.33,Materials - General,Miscellaneous and Specialty Retail Stores,GPC
Statement 19/09/2016 - 17/10/2016,Adults and Communities,AMAZON UK RETAIL AMAZON.C,27/09/2016,19.98,Materials - General,Miscellaneous and Specialty Retail Stores,GPC
Statement 19/09/2016 - 17/10/2016,Adults and Communities,AMAZON UK RETAIL AMAZON.C,29/09/2016,6.33,Materials - General,Miscellaneous and Specialty Retail Stores,GPC
Statement 19/09/2016 - 17/10/2016,Adults and Communities,AMAZON UK RETAIL AMAZON.C,07/10/2016,6.66,Materials - General,Miscellaneous and Specialty Retail Stores,GPC
Statement 19/09/2016 - 17/10/2016,Adults and Communities,AMAZON UK RETAIL AMAZON.C,10/10/2016,5.24,Materials - General,Miscellaneous and Specialty Retail Stores,GPC
Statement 19/09/2016 - 17/10/2016,Adults and Communities,AMAZON UK RETAIL AMAZON.C,10/10/2016,14.58,Materials - General,Miscellaneous and Specialty Retail Stores,GPC
Statement 19/09/2016 - 17/10/2016,Adults and Communities,AMAZON UK RETAIL AMAZON.C,11/10/2016,-0.99,Materials - General,Miscellaneous and Specialty Retail Stores,GPC
Statement 19/09/2016 - 17/10/2016,Adults and Communities,AMAZON UK RETAIL AMAZON.C,11/10/2016,5.24,Materials - General,Miscellaneous and Specialty Retail Stores,GPC
Statement 19/09/2016 - 17/10/2016,Adults and Communities,AMAZON UK RETAIL AMAZON.C,16/10/2016,47.08,Materials - General,Miscellaneous and Specialty Retail Stores,GPC
Statement 19/09/2016 - 17/10/2016,Adults and Communities,AMAZON UK RETAIL AMAZON.C,10/10/2016,17.83,Other Equipment & Materials - General,Miscellaneous and Specialty Retail Stores,GPC
Statement 19/09/2016 - 17/10/2016,Adults and Communities,AMAZON UK RETAIL AMAZON.C,02/10/2016,16.99,Other Expenditure - General,Miscellaneous and Specialty Retail Stores,GPC
Statement 19/09/2016 - 17/10/2016,Adults and Communities,AMAZON UK RETAIL AMAZON.C,29/09/2016,3.33,Postal Services - General,Miscellaneous and Specialty Retail Stores,GPC
Statement 19/09/2016 - 17/10/2016,Adults and Communities,AMAZON UK RETAIL AMAZON.C,14/10/2016,3.96,Postal Services - General,Miscellaneous and Specialty Retail Stores,GPC
Statement 19/09/2016 - 17/10/2016,Adults and Communities,ARGOS LTD,13/10/2016,66.65,Aids & Adaptations - Minor Adaptations,Discount Stores,GPC
Statement 19/09/2016 - 17/10/2016,Adults and Communities,ARGOS LTD,09/10/2016,29.99,Furniture - General,Discount Stores,GPC
Statement 19/09/2016 - 17/10/2016,Adults and Communities,ARGOS LTD,21/09/2016,39.99,General Equipment - General,Discount Stores,GPC
Statement 19/09/2016 - 17/10/2016,Adults and Communities,ARGOS LTD,01/10/2016,35.97,General Equipment - General,Discount Stores,GPC
Statement 19/09/2016 - 17/10/2016,Adults and Communities,ARGOS LTD,07/10/2016,24.99,General Equipment - General,Discount Stores,GPC
Statement 19/09/2016 - 17/10/2016,Adults and Communities,ARGOS LTD,02/10/2016,9.99,Operational Equipment - General,Discount Stores,GPC
Statement 19/09/2016 - 17/10/2016,Adults and Communities,ARGOS RETAIL GROUP,19/09/2016,39.96,Cleaning Materials - General,Discount Stores,GPC
Statement 19/09/2016 - 17/10/2016,Adults and Communities,ASDA STORES,02/10/2016,16,Furniture - General,"Grocery Stores, Supermarkets",GPC
Statement 19/09/2016 - 17/10/2016,Adults and Communities,ASDA STORES 4477,30/09/2016,18.05,Materials - General,"Grocery Stores, Supermarkets",GPC
Statement 19/09/2016 - 17/10/2016,Adults and Communities,ASDA STORES 4477,03/10/2016,8.35,Materials - General,"Grocery Stores, Supermarkets",GPC
Statement 19/09/2016 - 17/10/2016,Adults and Communities,ASDA STORES 4477,07/10/2016,0.95,Materials - General,"Grocery Stores, Supermarkets",GPC
Statement 19/09/2016 - 17/10/2016,Adults and Communities,ASDA STORES 4477,05/10/2016,36.13,Provisions - General,"Grocery Stores, Supermarkets",GPC
Statement 19/09/2016 - 17/10/2016,Adults and Communities,ASDA SUPERSTORE,14/10/2016,12,Furniture - General,"Grocery Stores, Supermarkets",GPC
Statement 19/09/2016 - 17/10/2016,Adults and Communities,ASDA SUPERSTORE,11/10/2016,16.66,General Equipment - General,"Grocery Stores, Supermarkets",GPC
Statement 19/09/2016 - 17/10/2016,Adults and Communities,ASDA SUPERSTORE,11/10/2016,155.29,Provisions - General,"Grocery Stores, Supermarkets",GPC
Statement 19/09/2016 - 17/10/2016,Adults and Communities,B & Q 1299,28/09/2016,15,Aids & Adaptations - Minor Adaptations,"Building Materials, Lumber Stores",GPC
Statement 19/09/2016 - 17/10/2016,Adults and Communities,B&M RETAIL LTD,21/09/2016,19.98,Furniture - General,Discount Stores,GPC
Statement 19/09/2016 - 17/10/2016,Adults and Communities,B&M RETAIL LTD,27/09/2016,34.96,Furniture - General,Discount Stores,GPC
Statement 19/09/2016 - 17/10/2016,Adults and Communities,B&M RETAIL LTD,11/10/2016,3.32,General Equipment - General,Discount Stores,GPC
Statement 19/09/2016 - 17/10/2016,Adults and Communities,BAILEY'S OF NORFOLK LT,13/10/2016,304,Operational Equipment - General,Nondurable Goods Not Elsewhere Classified,GPC
Statement 19/09/2016 - 17/10/2016,Adults and Communities,BALLOONS GALORE,14/10/2016,46.61,Other Equipment & Materials - General,Miscellaneous Publishing and  Printing,GPC
Statement 19/09/2016 - 17/10/2016,Adults and Communities,BALLOONS GALORE,14/10/2016,54.74,Other Expenditure - Public Enquiry fees,Miscellaneous Publishing and  Printing,GPC
Statement 19/09/2016 - 17/10/2016,Adults and Communities,BALLOONS GALORE,14/10/2016,8.13,Printing - General,Miscellaneous Publishing and  Printing,GPC
Statement 19/09/2016 - 17/10/2016,Adults and Communities,BC.BASECAMP 2997305,01/10/2016,15.46,IT Equipment - Licences,Membership Organizations-Not Elsewhere Classified,GPC
Statement 19/09/2016 - 17/10/2016,Adults and Communities,BRITISH A   1258546532762,21/09/2016,269.42,Casual/Essential - General,British Airways,GPC
Statement 19/09/2016 - 17/10/2016,Adults and Communities,BRITISH A   1258546772144,27/09/2016,314.62,Casual/Essential - General,British Airways,GPC
Statement 19/09/2016 - 17/10/2016,Adults and Communities,BURTON RETAIL/DP,20/09/2016,3,Materials - General,Men's And Women's Clothing Stores,GPC
Statement 19/09/2016 - 17/10/2016,Adults and Communities,CENTRAL ENG COOP,22/09/2016,6.42,Materials - General,Department Stores,GPC
Statement 19/09/2016 - 17/10/2016,Adults and Communities,CENTRAL ENG COOP,05/10/2016,34.56,Postal Services - General,Department Stores,GPC
Statement 19/09/2016 - 17/10/2016,Adults and Communities,CENTRAL ENG COOP,20/09/2016,20.08,Provisions - General,Department Stores,GPC
Statement 19/09/2016 - 17/10/2016,Adults and Communities,CENTRAL ENG COOP,21/09/2016,43.04,Provisions - General,Department Stores,GPC
Statement 19/09/2016 - 17/10/2016,Adults and Communities,CENTRAL ENG COOP,22/09/2016,45.32,Provisions - General,Department Stores,GPC
Statement 19/09/2016 - 17/10/2016,Adults and Communities,CENTRAL ENG COOP,23/09/2016,65.44,Provisions - General,Department Stores,GPC
Statement 19/09/2016 - 17/10/2016,Adults and Communities,CENTRAL ENG COOP,09/10/2016,27.38,Provisions - General,Department Stores,GPC
Statement 19/09/2016 - 17/10/2016,Adults and Communities,CENTRAL ENG COOP,10/10/2016,30.09,Provisions - General,Department Stores,GPC
Statement 19/09/2016 - 17/10/2016,Adults and Communities,CENTRAL ENG COOP,11/10/2016,26.98,Provisions - General,Department Stores,GPC
Statement 19/09/2016 - 17/10/2016,Adults and Communities,CENTRAL ENG COOP,12/10/2016,53.01,Provisions - General,Department Stores,GPC
Statement 19/09/2016 - 17/10/2016,Adults and Communities,CENTRAL ENG COOP,15/10/2016,5.06,Provisions - General,Department Stores,GPC
Statement 19/09/2016 - 17/10/2016,Adults and Communities,CHARNWOOD BC MOTO,21/09/2016,10.22,Other Expenditure - General,Government Services-Not Elsewhere Classified,GPC
Statement 19/09/2016 - 17/10/2016,Adults and Communities,CHARNWOOD BOROUGH COUNCI,28/09/2016,6,Casual/Essential - General,Automobile Parking Lots and Garages,GPC
Statement 19/09/2016 - 17/10/2016,Adults and Communities,CHARNWOOD BOROUGH COUNCI,03/10/2016,6,Casual/Essential - General,Automobile Parking Lots and Garages,GPC
Statement 19/09/2016 - 17/10/2016,Adults and Communities,CHARNWOOD BOROUGH COUNCI,05/10/2016,6,Casual/Essential - General,Automobile Parking Lots and Garages,GPC
Statement 19/09/2016 - 17/10/2016,Adults and Communities,CHARNWOOD BOROUGH COUNCI,11/10/2016,2.2,Casual/Essential - General,Automobile Parking Lots and Garages,GPC
Statement 19/09/2016 - 17/10/2016,Adults and Communities,CHARNWOOD BOROUGH COUNCI,14/10/2016,6,Casual/Essential - General,Automobile Parking Lots and Garages,GPC
Statement 19/09/2016 - 17/10/2016,Adults and Communities,CHARNWOOD BOROUGH COUNCI,29/09/2016,2.2,Other Equipment & Materials - General,Automobile Parking Lots and Garages,GPC
Statement 19/09/2016 - 17/10/2016,Adults and Communities,CHILD POVERTY,26/09/2016,71,Other Services - General,Charitable and Social Service Organizations,GPC
Statement 19/09/2016 - 17/10/2016,Adults and Communities,CHILD POVERTY,26/09/2016,80,Other Services - General,Charitable and Social Service Organizations,GPC
Statement 19/09/2016 - 17/10/2016,Adults and Communities,CITY & GUILDS,07/10/2016,3,Exam Fees - General,Charitable and Social Service Organizations,GPC
Statement 19/09/2016 - 17/10/2016,Adults and Communities,CITY & GUILDS,07/10/2016,250,Exam Fees - General,Charitable and Social Service Organizations,GPC
Statement 19/09/2016 - 17/10/2016,Adults and Communities,CITY OF LINCOLN,27/09/2016,5.5,Public Transport -  Staff - General,Government Services-Not Elsewhere Classified,GPC
Statement 19/09/2016 - 17/10/2016,Adults and Communities,CLARKE OPTICIANS,22/09/2016,20,Operational Equipment - DDA,Opticians,GPC
Statement 19/09/2016 - 17/10/2016,Adults and Communities,COPPERCRAFT OF MALTON,12/10/2016,180,Materials - General,"Gift, Card, Novelty, and Souvenir Shops",GPC
Statement 19/09/2016 - 17/10/2016,Adults and Communities,CROSSBOW EDUCATION,06/10/2016,21.5,Training Expenses - General,Correspondence Schools,GPC
Statement 19/09/2016 - 17/10/2016,Adults and Communities,DEBT RECOVERY PLUS LTD,02/09/2016,-164.95,Schools Agency staff - Teaching Staff,Miscellaneous Personal Services-Not Elsewhere Clas,GPC
Statement 19/09/2016 - 17/10/2016,Adults and Communities,DUNELM (SOFT FURNISHIN,02/10/2016,112.9,Furniture - General,"Drapery, Window Coverings, and Upholstery Stores",GPC
Statement 19/09/2016 - 17/10/2016,Adults and Communities,EQUITA LTD,03/09/2016,-189.5,Other Expenditure - General,Government Services-Not Elsewhere Classified,GPC
Statement 19/09/2016 - 17/10/2016,Adults and Communities,ESPO,14/10/2016,41.88,Stationery - General,Government Services-Not Elsewhere Classified,GPC
Statement 19/09/2016 - 17/10/2016,Adults and Communities,FACEBK Z3N6LAW7R2,30/09/2016,57.26,Publicity/Marketing - General,Advertising Services,GPC
Statement 19/09/2016 - 17/10/2016,Adults and Communities,FAST KEY SERVICES LIMI,21/09/2016,41.05,Materials - General,Business Services-Not Elsewhere Classified,GPC
Statement 19/09/2016 - 17/10/2016,Adults and Communities,FAST KEY SERVICES LIMI,05/10/2016,5.63,Materials - General,Business Services-Not Elsewhere Classified,GPC
Statement 19/09/2016 - 17/10/2016,Adults and Communities,FAST KEY SERVICES LIMI,05/10/2016,1.13,Other Equipment & Materials - General,Business Services-Not Elsewhere Classified,GPC
Statement 19/09/2016 - 17/10/2016,Adults and Communities,FOREIGN EXCHANGE FEE,03/10/2016,0.43,IT Equipment - Licences,Misc-Unknown,GPC
Statement 19/09/2016 - 17/10/2016,Adults and Communities,FRANK PARKER,06/10/2016,9.97,Provisions - General,"Freezer, Locker Meat Provisioners",GPC
Statement 19/09/2016 - 17/10/2016,Adults and Communities,GRAYS KITCHEN,05/10/2016,6.75,Other Expenditure - General,"Eating Places, Restaurants",GPC
Statement 19/09/2016 - 17/10/2016,Adults and Communities,GREEN,07/10/2016,15.84,Other Services - General,"Lawn and Garden Supply Stores, Nurseries",GPC
Statement 19/09/2016 - 17/10/2016,Adults and Communities,HANDSET SOLUTIONS,06/10/2016,94.74,General Equipment - General,Telecommunication Equipment Including Telephone Sa,GPC
Statement 19/09/2016 - 17/10/2016,Adults and Communities,HARLOW BROS LTD,11/10/2016,80.54,Aids & Adaptations - Minor Adaptations,"Building Materials, Lumber Stores",GPC
Statement 19/09/2016 - 17/10/2016,Adults and Communities,HMCOURTS-SERVICE.G,26/09/2016,20,Other Expenditure - General,Fines,GPC
Statement 19/09/2016 - 17/10/2016,Adults and Communities,HOME BARGAINS COALVILL,01/10/2016,0.59,General Equipment - General,Hardware Stores,GPC
Statement 19/09/2016 - 17/10/2016,Adults and Communities,HOME BARGAINS COALVILL,20/09/2016,25.9,Materials - General,Hardware Stores,GPC
Statement 19/09/2016 - 17/10/2016,Adults and Communities,HSE BOOKS (INTERNET),27/09/2016,7.5,Books - General,Government Services-Not Elsewhere Classified,GPC
Statement 19/09/2016 - 17/10/2016,Adults and Communities,HTTP://ACE.APPRENTICES,20/09/2016,220,Exam Fees - General,"Management, Consulting and Public Relations Servic",GPC
Statement 19/09/2016 - 17/10/2016,Adults and Communities,HTTP://ACE.APPRENTICES,20/09/2016,220,Exam Fees - General,"Management, Consulting and Public Relations Servic",GPC
Statement 19/09/2016 - 17/10/2016,Adults and Communities,HTTP://ACE.APPRENTICES,20/09/2016,220,Exam Fees - General,"Management, Consulting and Public Relations Servic",GPC
Statement 19/09/2016 - 17/10/2016,Adults and Communities,HTTP://ACE.APPRENTICES,20/09/2016,220,Exam Fees - General,"Management, Consulting and Public Relations Servic",GPC
Statement 19/09/2016 - 17/10/2016,Adults and Communities,HTTP://PMSE.OFCOM.ORG.,30/09/2016,135,Subscriptions - General,Professional Services-Not Elsewhere Classified,GPC
Statement 19/09/2016 - 17/10/2016,Adults and Communities,I F CARDBOARD CREA,13/10/2016,88.65,Materials - General,"Gift, Card, Novelty, and Souvenir Shops",GPC
Statement 19/09/2016 - 17/10/2016,Adults and Communities,ICELAND,23/09/2016,13.75,Provisions - General,"Grocery Stores, Supermarkets",GPC
Statement 19/09/2016 - 17/10/2016,Adults and Communities,ICELAND,11/10/2016,15.66,Provisions - General,"Grocery Stores, Supermarkets",GPC
Statement 19/09/2016 - 17/10/2016,Adults and Communities,INFECTION PREVENTI,22/09/2016,55,Conference - General,Charitable and Social Service Organizations,GPC
Statement 19/09/2016 - 17/10/2016,Adults and Communities,INFECTION PREVENTI,22/09/2016,55,Conference - General,Charitable and Social Service Organizations,GPC
Statement 19/09/2016 - 17/10/2016,Adults and Communities,INK N TONER UK,12/10/2016,213.91,Books - General,"Stationery, Office, and School Supply Stores",GPC
Statement 19/09/2016 - 17/10/2016,Adults and Communities,JAMES GALT &CO LTD,27/09/2016,124.96,Materials - General,"Hobby, Toy, and Game Shops",GPC
Statement 19/09/2016 - 17/10/2016,Adults and Communities,JOHN E WRIGHT,05/10/2016,18,Other Equipment & Materials - General,Miscellaneous Publishing and  Printing,GPC
Statement 19/09/2016 - 17/10/2016,Adults and Communities,JOHNSTONES DECORATING,28/09/2016,60,Aids & Adaptations - Minor Adaptations,"Glass, Paint, Wallpaper Stores",GPC
Statement 19/09/2016 - 17/10/2016,Adults and Communities,LAMBETH PARKING,03/09/2016,-65,Other Expenditure - General,Government Services-Not Elsewhere Classified,GPC
Statement 19/09/2016 - 17/10/2016,Adults and Communities,LEICESTER DIGITAL PRIN,20/09/2016,122,Stationery - General,Miscellaneous Publishing and  Printing,GPC
Statement 19/09/2016 - 17/10/2016,Adults and Communities,LEICESTERSHIRE C COUNC,14/10/2016,21,Other Expenditure - General,Government Services-Not Elsewhere Classified,GPC
Statement 19/09/2016 - 17/10/2016,Adults and Communities,LOUGHBOROUGH TOWN HALL,29/09/2016,145,Other Expenditure - General,Government Services-Not Elsewhere Classified,GPC
Statement 19/09/2016 - 17/10/2016,Adults and Communities,LUL TICKET MACHINE,10/10/2016,24.2,Casual/Essential - General,Passenger Railways,GPC
Statement 19/09/2016 - 17/10/2016,Adults and Communities,MARKS&SPENCER PLC SACA,14/10/2016,35,Furniture - General,"Grocery Stores, Supermarkets",GPC
Statement 19/09/2016 - 17/10/2016,Adults and Communities,MERCURY NEWS 63917/453,20/09/2016,172.5,Newspapers & Periodicals - General,"Grocery Stores, Supermarkets",GPC
Statement 19/09/2016 - 17/10/2016,Adults and Communities,MONEYSUPERMARKET.COM,23/09/2016,6.17,Schools Agency staff - Teaching Staff,Miscellaneous Personal Services-Not Elsewhere Clas,GPC
Statement 19/09/2016 - 17/10/2016,Adults and Communities,NCP LIMITED,29/09/2016,10,Other Expenditure - General,Automobile Parking Lots and Garages,GPC
Statement 19/09/2016 - 17/10/2016,Adults and Communities,NCP LIMITED,05/10/2016,4.6,Public Transport -  Staff - General,Automobile Parking Lots and Garages,GPC
Statement 19/09/2016 - 17/10/2016,Adults and Communities,OCADO LTD.,19/09/2016,57.56,Provisions - General,"Miscellaneous Food Stores-Convenience Stores, Mark",GPC
Statement 19/09/2016 - 17/10/2016,Adults and Communities,OCADO LTD.,23/09/2016,43.48,Provisions - General,"Miscellaneous Food Stores-Convenience Stores, Mark",GPC
Statement 19/09/2016 - 17/10/2016,Adults and Communities,OCADO LTD.,30/09/2016,127.71,Provisions - General,"Miscellaneous Food Stores-Convenience Stores, Mark",GPC
Statement 19/09/2016 - 17/10/2016,Adults and Communities,OCADO LTD.,03/10/2016,79.9,Provisions - General,"Miscellaneous Food Stores-Convenience Stores, Mark",GPC
Statement 19/09/2016 - 17/10/2016,Adults and Communities,OCADO LTD.,07/10/2016,53.27,Provisions - General,"Miscellaneous Food Stores-Convenience Stores, Mark",GPC
Statement 19/09/2016 - 17/10/2016,Adults and Communities,OCADO LTD.,10/10/2016,92.58,Provisions - General,"Miscellaneous Food Stores-Convenience Stores, Mark",GPC
Statement 19/09/2016 - 17/10/2016,Adults and Communities,OCADO LTD.,14/10/2016,88.86,Provisions - General,"Miscellaneous Food Stores-Convenience Stores, Mark",GPC
Statement 19/09/2016 - 17/10/2016,Adults and Communities,OCADO RETAIL LIMIT,26/09/2016,62.08,Provisions - General,"Miscellaneous Food Stores-Convenience Stores, Mark",GPC
Statement 19/09/2016 - 17/10/2016,Adults and Communities,OMBC INT PAYMENT,14/10/2016,11,Other Expenditure - General,Government Services-Not Elsewhere Classified,GPC
Statement 19/09/2016 - 17/10/2016,Adults and Communities,PAYPAL,23/09/2016,12.78,General Equipment - General,"RADIO, TELEVISION, AND STEREO STORES (ELECTRONIC STORES)",GPC
Statement 19/09/2016 - 17/10/2016,Adults and Communities,PAYPAL  CHENMEISHU,29/09/2016,7.58,Books - General,Miscellaneous Apparel and Accessory Stores,GPC
Statement 19/09/2016 - 17/10/2016,Adults and Communities,PAYPAL  EUROFFICELT,27/09/2016,123.2,Stationery - General,"Stationery, Office, and School Supply Stores",GPC
Statement 19/09/2016 - 17/10/2016,Adults and Communities,PAYPAL  FASTKEYSERV,12/10/2016,6.76,General Equipment - General,Advertising Services,GPC
Statement 19/09/2016 - 17/10/2016,Adults and Communities,PAYPAL  IMAGITEC,23/09/2016,22.45,Stationery - General,Chemicals and Allied Products Not Elsewhere Classi,GPC
Statement 19/09/2016 - 17/10/2016,Adults and Communities,PAYPAL  POPALTECHNO,10/10/2016,14.95,Materials - General,"RADIO, TELEVISION, AND STEREO STORES (ELECTRONIC STORES)",GPC
Statement 19/09/2016 - 17/10/2016,Adults and Communities,PAYPAL  SHOPINCLTD,27/09/2016,3.99,Other Equipment & Materials - General,Chemicals and Allied Products Not Elsewhere Classi,GPC
Statement 19/09/2016 - 17/10/2016,Adults and Communities,PAYPAL  VALUEPRODUC,12/10/2016,218.22,General Equipment - General,"Medical Services, Health Practitioners-Not Elsewhe",GPC
Statement 19/09/2016 - 17/10/2016,Adults and Communities,PONDEN HOME,21/09/2016,28,Furniture - General,Miscellaneous House Furnishing Specialty Shops,GPC
Statement 19/09/2016 - 17/10/2016,Adults and Communities,PONDEN HOME,23/09/2016,60,Furniture - General,Miscellaneous House Furnishing Specialty Shops,GPC
Statement 19/09/2016 - 17/10/2016,Adults and Communities,PONDEN HOME,26/09/2016,140,Furniture - General,Miscellaneous House Furnishing Specialty Shops,GPC
Statement 19/09/2016 - 17/10/2016,Adults and Communities,PONDEN HOME,27/09/2016,130,Furniture - General,Miscellaneous House Furnishing Specialty Shops,GPC
Statement 19/09/2016 - 17/10/2016,Adults and Communities,PONDEN HOME,10/10/2016,40,Furniture - General,Miscellaneous House Furnishing Specialty Shops,GPC
Statement 19/09/2016 - 17/10/2016,Adults and Communities,PONDEN HOME,11/10/2016,96,Furniture - General,Miscellaneous House Furnishing Specialty Shops,GPC
Statement 19/09/2016 - 17/10/2016,Adults and Communities,POUNDLAND LTD 1142,20/09/2016,4.17,Other Equipment & Materials - General,Discount Stores,GPC
Statement 19/09/2016 - 17/10/2016,Adults and Communities,POUNDLAND LTD 1182,12/10/2016,4,Materials - General,Discount Stores,GPC
Statement 19/09/2016 - 17/10/2016,Adults and Communities,PP WANTED,29/09/2016,5,Books - General,Antique Shops,GPC
Statement 19/09/2016 - 17/10/2016,Adults and Communities,PREMIER INN44031695,22/09/2016,140.82,Casual/Essential - Casual,PREMIER TRAVEL,GPC
Statement 19/09/2016 - 17/10/2016,Adults and Communities,PRINCES MARINE HOT,05/10/2016,86.95,Subsistence - General,"Lodging-Hotels, Motels, Resorts",GPC
Statement 19/09/2016 - 17/10/2016,Adults and Communities,PRINCES MARINE HOT,05/10/2016,104.9,Subsistence - General,"Lodging-Hotels, Motels, Resorts",GPC
Statement 19/09/2016 - 17/10/2016,Adults and Communities,ROVING BOOKS LTD,23/09/2016,210,Training Expenses - General,Book Stores,GPC
Statement 19/09/2016 - 17/10/2016,Adults and Communities,ROYAL MAIL,06/10/2016,130,Postal Services - General,Postage Stamps,GPC
Statement 19/09/2016 - 17/10/2016,Adults and Communities,ROYAL MAIL,10/10/2016,321,Postal Services - General,Postage Stamps,GPC
Statement 19/09/2016 - 17/10/2016,Adults and Communities,ROYAL MAIL ONLINE SHOP,27/09/2016,25.45,Postal Services - General,Postage Stamps,GPC
Statement 19/09/2016 - 17/10/2016,Adults and Communities,RYMAN,27/09/2016,4.12,Stationery - General,"Stationery, Office, and School Supply Stores",GPC
Statement 19/09/2016 - 17/10/2016,Adults and Communities,RYMAN,04/10/2016,18.67,Stationery - General,"Stationery, Office, and School Supply Stores",GPC
Statement 19/09/2016 - 17/10/2016,Adults and Communities,SAINSBURY'S S/MKT,22/09/2016,34.36,Operational Equipment - General,"Grocery Stores, Supermarkets",GPC
Statement 19/09/2016 - 17/10/2016,Adults and Communities,SAINSBURY'S S/MKT,30/09/2016,116.15,Provisions - General,"Grocery Stores, Supermarkets",GPC
Statement 19/09/2016 - 17/10/2016,Adults and Communities,SAINSBURY'S S/MKT,14/10/2016,122.74,Provisions - General,"Grocery Stores, Supermarkets",GPC
Statement 19/09/2016 - 17/10/2016,Adults and Communities,SAINSBURYS S/MKTS,21/09/2016,5.6,Materials - General,"Grocery Stores, Supermarkets",GPC
Statement 19/09/2016 - 17/10/2016,Adults and Communities,Sainsburys S/mkts,04/10/2016,11.25,Materials - General,"Grocery Stores, Supermarkets",GPC
Statement 19/09/2016 - 17/10/2016,Adults and Communities,SAINSBURYS S/MKTS,29/09/2016,26.4,Provisions - General,"Grocery Stores, Supermarkets",GPC
Statement 19/09/2016 - 17/10/2016,Adults and Communities,SAINSBURYS S/MKTS,03/10/2016,19.55,Provisions - General,"Grocery Stores, Supermarkets",GPC
Statement 19/09/2016 - 17/10/2016,Adults and Communities,SAINSBURYS S/MKTS,05/10/2016,4.2,Provisions - General,"Grocery Stores, Supermarkets",GPC
Statement 19/09/2016 - 17/10/2016,Adults and Communities,SAINSBURY'S S/MKTS,15/10/2016,2,Other Expenditure - General,"Grocery Stores, Supermarkets",GPC
Statement 19/09/2016 - 17/10/2016,Adults and Communities,SAINSBURY'S S/MKTS,30/09/2016,2,Provisions - General,"Grocery Stores, Supermarkets",GPC
Statement 19/09/2016 - 17/10/2016,Adults and Communities,SCREWFIX,10/10/2016,32.16,Aids & Adaptations - Minor Adaptations,"Building Materials, Lumber Stores",GPC
Statement 19/09/2016 - 17/10/2016,Adults and Communities,SP  SHERWOOD DIA,22/09/2016,42,Stationery - General,Computer Software Stores,GPC
Statement 19/09/2016 - 17/10/2016,Adults and Communities,STAFFORDSHIRE COUNTY C,14/10/2016,10,Other Expenditure - General,Government Services-Not Elsewhere Classified,GPC
Statement 19/09/2016 - 17/10/2016,Adults and Communities,STONE MARKETING LTD,30/09/2016,103.4,Materials - General,"Stationery, Office, and School Supply Stores",GPC
Statement 19/09/2016 - 17/10/2016,Adults and Communities,SURVEYMONKEY.COM,12/10/2016,21.67,IT Equipment - Licences,Continuity/Subscription Merchants,GPC
Statement 19/09/2016 - 17/10/2016,Adults and Communities,TALKTALK BUSINESS,23/09/2016,148.79,Telephones - General,Telecommunication Service Including Local and Long,GPC
Statement 19/09/2016 - 17/10/2016,Adults and Communities,TESCO STORE 2878,05/10/2016,29.2,Provisions - General,"Grocery Stores, Supermarkets",GPC
Statement 19/09/2016 - 17/10/2016,Adults and Communities,TESCO STORE 2878,05/10/2016,5.22,Provisions - General,"Grocery Stores, Supermarkets",GPC
Statement 19/09/2016 - 17/10/2016,Adults and Communities,TESCO STORES 5182,20/09/2016,18,Cleaning Materials - General,"Grocery Stores, Supermarkets",GPC
Statement 19/09/2016 - 17/10/2016,Adults and Communities,TESCO STORES 5182,19/09/2016,127.34,Provisions - General,"Grocery Stores, Supermarkets",GPC
Statement 19/09/2016 - 17/10/2016,Adults and Communities,TESCO STORES 5182,23/09/2016,148.33,Provisions - General,"Grocery Stores, Supermarkets",GPC
Statement 19/09/2016 - 17/10/2016,Adults and Communities,TESCO STORES 5182,26/09/2016,132.47,Provisions - General,"Grocery Stores, Supermarkets",GPC
Statement 19/09/2016 - 17/10/2016,Adults and Communities,TESCO STORES 5182,03/10/2016,126.48,Provisions - General,"Grocery Stores, Supermarkets",GPC
Statement 19/09/2016 - 17/10/2016,Adults and Communities,TESCO STORES 5182,07/10/2016,130.49,Provisions - General,"Grocery Stores, Supermarkets",GPC
Statement 19/09/2016 - 17/10/2016,Adults and Communities,TESCO STORES 5182,14/10/2016,19.5,Provisions - General,"Grocery Stores, Supermarkets",GPC
Statement 19/09/2016 - 17/10/2016,Adults and Communities,TESCO-STORES 2846,30/09/2016,19.88,Personal Needs of Clients - General,"Grocery Stores, Supermarkets",GPC
Statement 19/09/2016 - 17/10/2016,Adults and Communities,TESCO-STORES-6065,27/09/2016,11.83,Schools Agency staff - Support Staff,"Grocery Stores, Supermarkets",GPC
Statement 19/09/2016 - 17/10/2016,Adults and Communities,THE GEORGE,28/09/2016,10,Public Transport -  Staff - General,"Lodging-Hotels, Motels, Resorts",GPC
Statement 19/09/2016 - 17/10/2016,Adults and Communities,THE MOBILITY EQUIPMENT CO,27/09/2016,36,General Equipment - General,Laboratory/Medical/Dental/Ophthalmic Hospital Equi,GPC
Statement 19/09/2016 - 17/10/2016,Adults and Communities,THE RANGE,08/10/2016,71.23,Furniture - General,Department Stores,GPC
Statement 19/09/2016 - 17/10/2016,Adults and Communities,THE RANGE,30/09/2016,50.37,Personal Needs of Clients - General,Department Stores,GPC
Statement 19/09/2016 - 17/10/2016,Adults and Communities,THE READING AGENCY,09/10/2016,312,Printing - General,"Typesetting, Plate Making, and Related Services",GPC
Statement 19/09/2016 - 17/10/2016,Adults and Communities,THREE-BILLPAY(CC),11/10/2016,19.99,Other Expenditure - General,Telecommunication Service Including Local and Long,GPC
Statement 19/09/2016 - 17/10/2016,Adults and Communities,THREE-BILLPAY(CC),11/10/2016,9.99,Schools Agency staff - Support Staff,Telecommunication Service Including Local and Long,GPC
Statement 19/09/2016 - 17/10/2016,Adults and Communities,TRAINLINE,19/09/2016,63.24,Casual/Essential - General,Passenger Railways,GPC
Statement 19/09/2016 - 17/10/2016,Adults and Communities,TRAINLINE,06/10/2016,-112.6,Public Transport -  Staff - General,Passenger Railways,GPC
Statement 19/09/2016 - 17/10/2016,Adults and Communities,TRAINLINE.COM LTD,29/09/2016,79.05,Casual/Essential - General,Passenger Railways,GPC
Statement 19/09/2016 - 17/10/2016,Adults and Communities,TRAINLINE.COM LTD,03/10/2016,60.5,Display/Conservn/Exhibitions - Conservation,Passenger Railways,GPC
Statement 19/09/2016 - 17/10/2016,Adults and Communities,TRAINLINE.COM LTD,29/09/2016,28.45,Public Transport -  Staff - General,Passenger Railways,GPC
Statement 19/09/2016 - 17/10/2016,Adults and Communities,TRAINLINE.COM LTD,30/09/2016,124.03,Public Transport -  Staff - General,Passenger Railways,GPC
Statement 19/09/2016 - 17/10/2016,Adults and Communities,TRAINLINE.COM LTD,03/10/2016,124.03,Public Transport -  Staff - General,Passenger Railways,GPC
Statement 19/09/2016 - 17/10/2016,Adults and Communities,TRAINLINE.COM LTD,03/10/2016,115.36,Public Transport -  Staff - General,Passenger Railways,GPC
Statement 19/09/2016 - 17/10/2016,Adults and Communities,TRAINLINE.COM LTD,04/10/2016,139.43,Public Transport -  Staff - General,Passenger Railways,GPC
Statement 19/09/2016 - 17/10/2016,Adults and Communities,TRAINLINE.COM LTD,11/10/2016,126.5,Public Transport -  Staff - General,Passenger Railways,GPC
Statement 19/09/2016 - 17/10/2016,Adults and Communities,TRAVEL REPUBLIC LTD,29/09/2016,334.53,Casual/Essential - General,Travel Agencies,GPC
Statement 19/09/2016 - 17/10/2016,Adults and Communities,TRAVEL REPUBLIC LTD,29/09/2016,-333.51,Casual/Essential - General,Travel Agencies,GPC
Statement 19/09/2016 - 17/10/2016,Adults and Communities,TRAVEL REPUBLIC LTD,30/09/2016,276.39,Casual/Essential - General,Travel Agencies,GPC
Statement 19/09/2016 - 17/10/2016,Adults and Communities,W BOYES & CO LTD COALV,21/09/2016,41.01,Furniture - General,Discount Stores,GPC
Statement 19/09/2016 - 17/10/2016,Adults and Communities,W BOYES & CO LTD COALV,06/10/2016,6.15,Other Equipment & Materials - General,Discount Stores,GPC
Statement 19/09/2016 - 17/10/2016,Adults and Communities,W BOYES & CO LTD COALV,07/10/2016,5.39,Other Equipment & Materials - General,Discount Stores,GPC
Statement 19/09/2016 - 17/10/2016,Adults and Communities,WANDSWORTH COUNCIL INT,03/09/2016,-55,Other Expenditure - General,Government Services-Not Elsewhere Classified,GPC
Statement 19/09/2016 - 17/10/2016,Adults and Communities,WH SMITH,12/10/2016,10.98,Newspapers & Periodicals - General,News Dealers and Newsstands,GPC
Statement 19/09/2016 - 17/10/2016,Adults and Communities,WILKO RETAIL LIMIT,11/10/2016,2.54,Furniture - General,Household Appliance Stores,GPC
Statement 19/09/2016 - 17/10/2016,Adults and Communities,WILKO RETAIL LIMIT,23/09/2016,8,General Equipment - General,Household Appliance Stores,GPC
Statement 19/09/2016 - 17/10/2016,Adults and Communities,WILKO RETAIL LIMIT,21/09/2016,12,Materials - General,Household Appliance Stores,GPC
Statement 19/09/2016 - 17/10/2016,Adults and Communities,WILKO RETAIL LIMIT,03/10/2016,15.8,Materials - General,Household Appliance Stores,GPC
Statement 19/09/2016 - 17/10/2016,Adults and Communities,WILKO RETAIL LIMIT,06/10/2016,17.5,Materials - General,Household Appliance Stores,GPC
Statement 19/09/2016 - 17/10/2016,Adults and Communities,WILKO RETAIL LIMIT,13/10/2016,20.15,Materials - General,Household Appliance Stores,GPC
Statement 19/09/2016 - 17/10/2016,Adults and Communities,WILKO RETAIL LIMIT,23/09/2016,3.2,Operational Equipment - General,Household Appliance Stores,GPC
Statement 19/09/2016 - 17/10/2016,Adults and Communities,WILKO RETAIL LIMIT,26/09/2016,1.5,Other Equipment & Materials - General,Household Appliance Stores,GPC
Statement 19/09/2016 - 17/10/2016,Adults and Communities,WILKO RETAIL LIMIT,15/10/2016,2.8,Other Expenditure - General,Household Appliance Stores,GPC
Statement 19/09/2016 - 17/10/2016,Adults and Communities,WILKO.COM,07/10/2016,20,Display/Conservn/Exhibitions - Exhibitions,Household Appliance Stores,GPC
Statement 19/09/2016 - 17/10/2016,Adults and Communities,WM MORRISON 054,22/09/2016,24,Materials - General,"Grocery Stores, Supermarkets",GPC
Statement 19/09/2016 - 17/10/2016,Adults and Communities,WM MORRISON 054,24/09/2016,13.02,Materials - General,"Grocery Stores, Supermarkets",GPC
Statement 19/09/2016 - 17/10/2016,Adults and Communities,WM MORRISON 054,29/09/2016,52.04,Materials - General,"Grocery Stores, Supermarkets",GPC
Statement 19/09/2016 - 17/10/2016,Adults and Communities,WM MORRISON 054,30/09/2016,35.47,Materials - General,"Grocery Stores, Supermarkets",GPC
Statement 19/09/2016 - 17/10/2016,Adults and Communities,WM MORRISON 054,02/10/2016,46.07,Materials - General,"Grocery Stores, Supermarkets",GPC
Statement 19/09/2016 - 17/10/2016,Adults and Communities,WM MORRISON 054,11/10/2016,11.1,Materials - General,"Grocery Stores, Supermarkets",GPC
Statement 19/09/2016 - 17/10/2016,Adults and Communities,WM MORRISON 054,12/10/2016,20.86,Materials - General,"Grocery Stores, Supermarkets",GPC
Statement 19/09/2016 - 17/10/2016,Adults and Communities,WM MORRISON 054,13/10/2016,29.76,Materials - General,"Grocery Stores, Supermarkets",GPC
Statement 19/09/2016 - 17/10/2016,Adults and Communities,WM MORRISON 054,13/10/2016,1.5,Materials - General,"Grocery Stores, Supermarkets",GPC
Statement 19/09/2016 - 17/10/2016,Adults and Communities,WM MORRISON 054,29/09/2016,4.5,Other Expenditure - General,"Grocery Stores, Supermarkets",GPC
Statement 19/09/2016 - 17/10/2016,Adults and Communities,WM MORRISON 054,11/10/2016,3.4,Other Expenditure - General,"Grocery Stores, Supermarkets",GPC
Statement 19/09/2016 - 17/10/2016,Adults and Communities,WM MORRISON 054,19/09/2016,59.87,Provisions - General,"Grocery Stores, Supermarkets",GPC
Statement 19/09/2016 - 17/10/2016,Adults and Communities,WM MORRISON 054,23/09/2016,111.37,Provisions - General,"Grocery Stores, Supermarkets",GPC
Statement 19/09/2016 - 17/10/2016,Adults and Communities,WM MORRISON 054,27/09/2016,25.39,Provisions - General,"Grocery Stores, Supermarkets",GPC
Statement 19/09/2016 - 17/10/2016,Adults and Communities,WM MORRISON 054,29/09/2016,47.46,Provisions - General,"Grocery Stores, Supermarkets",GPC
Statement 19/09/2016 - 17/10/2016,Adults and Communities,WM MORRISON 054,08/10/2016,114.39,Provisions - General,"Grocery Stores, Supermarkets",GPC
Statement 19/09/2016 - 17/10/2016,Adults and Communities,WM MORRISON 054,13/10/2016,40.58,Provisions - General,"Grocery Stores, Supermarkets",GPC
Statement 19/09/2016 - 17/10/2016,Adults and Communities,WM MORRISON 054,13/10/2016,40.5,Provisions - General,"Grocery Stores, Supermarkets",GPC
Statement 19/09/2016 - 17/10/2016,Adults and Communities,WM MORRISONS,10/10/2016,17.5,General Equipment - General,"Grocery Stores, Supermarkets",GPC
Statement 19/09/2016 - 17/10/2016,Adults and Communities,WM MORRISONS,28/09/2016,11.45,Provisions - General,"Grocery Stores, Supermarkets",GPC
Statement 19/09/2016 - 17/10/2016,Adults and Communities,WOVEN LABELS UK LT,07/10/2016,11.97,Display/Conservn/Exhibitions - Exhibitions,Miscellaneous Apparel and Accessory Stores,GPC
Statement 19/09/2016 - 17/10/2016,Adults and Communities,WP-DIRECTORY OF SO,05/10/2016,8,Other Expenditure - General,Charitable and Social Service Organizations,GPC
Statement 19/09/2016 - 17/10/2016,Adults and Communities,WWW.BAKERROSS.CO.UK,26/09/2016,12.26,Materials - General,"Artist Supply Stores, Craft Shops",GPC
Statement 19/09/2016 - 17/10/2016,Adults and Communities,WWW.CASHS.CO.UK,30/09/2016,33,Materials - General,Men's and Boy's Clothing and Furnishings Store,GPC
Statement 19/09/2016 - 17/10/2016,Adults and Communities,WWW.GOV.UK,19/09/2016,10,Other Expenditure - Public Enquiry fees,Professional Services-Not Elsewhere Classified,GPC
Statement 19/09/2016 - 17/10/2016,Adults and Communities,WWW.GOV.UK,13/10/2016,10,Other Expenditure - Public Enquiry fees,Professional Services-Not Elsewhere Classified,GPC
Statement 19/09/2016 - 17/10/2016,Adults and Communities,WWW.GOV.UK,13/10/2016,10,Other Expenditure - Public Enquiry fees,Professional Services-Not Elsewhere Classified,GPC
Statement 19/09/2016 - 17/10/2016,Adults and Communities,WWW.NEOPOST.CO.UK,12/10/2016,459,Stationery - General,"Stationary, Office Supplies, Printing and Writing",GPC
Statement 19/09/2016 - 17/10/2016,Adults and Communities,WWW.NEOPOST.CO.UK,14/10/2016,489.6,Stationery - General,"Stationary, Office Supplies, Printing and Writing",GPC
Statement 19/09/2016 - 17/10/2016,Adults and Communities,WWW.PARAGON.NET.UK RT,11/10/2016,14.99,Premises Insurance - General,Continuity/Subscription Merchants,GPC
Statement 19/09/2016 - 17/10/2016,Adults and Communities,WWW.PROP4SHOWS.O.UK,13/10/2016,14.75,Other Equipment & Materials - General,Miscellaneous Apparel and Accessory Stores,GPC
Statement 19/09/2016 - 17/10/2016,Adults and Communities,WWW.RYMAN.CO.UK,04/10/2016,64.39,Stationery - General,"Stationery, Office, and School Supply Stores",GPC
Statement 19/09/2016 - 17/10/2016,Adults and Communities,WWW.RYMAN.CO.UK,12/10/2016,29.98,Stationery - General,"Stationery, Office, and School Supply Stores",GPC
Statement 19/09/2016 - 17/10/2016,Adults and Communities,WWW.THECATERER.COM,20/09/2016,83.33,Books - General,Miscellaneous Publishing and  Printing,GPC
Statement 19/09/2016 - 17/10/2016,Adults and Communities,WWW.TTS-GROUPS.CO.UK,13/10/2016,37.95,Other Equipment & Materials - General,"Stationery, Office, and School Supply Stores",GPC
Statement 19/09/2016 - 17/10/2016,Adults and Communities,WWW.YHA.ORG.UK,13/10/2016,56,Other Equipment & Materials - General,"Lodging-Hotels, Motels, Resorts",GPC
Statement 19/09/2016 - 17/10/2016,Adults and Communities,WWW/REED.CO.UK,28/09/2016,210,Other Allowances/Expenses - Optical Charges Refunded,Business and Secretarial Schools,GPC
Statement 19/09/2016 - 17/10/2016,C&YPS-Non Delegated,43034775 COSTA COFFEE,20/09/2016,8.15,Other Expenditure - General,Fast-Food Restaurants (Quick Payment Service Pilot,GPC
Statement 19/09/2016 - 17/10/2016,C&YPS-Non Delegated,AA STATIONERS LEICESTER,28/09/2016,29.39,Other Equipment & Materials - General,"Stationery, Office, and School Supply Stores",GPC
Statement 19/09/2016 - 17/10/2016,C&YPS-Non Delegated,ALDI,30/09/2016,8.77,Other Equipment & Materials - General,"Grocery Stores, Supermarkets",GPC
Statement 19/09/2016 - 17/10/2016,C&YPS-Non Delegated,ALDI,03/10/2016,134.65,Provisions - General,"Grocery Stores, Supermarkets",GPC
Statement 19/09/2016 - 17/10/2016,C&YPS-Non Delegated,ALDI,08/10/2016,7.43,Provisions - General,"Grocery Stores, Supermarkets",GPC
Statement 19/09/2016 - 17/10/2016,C&YPS-Non Delegated,ALDI,10/10/2016,69.27,Provisions - General,"Grocery Stores, Supermarkets",GPC
Statement 19/09/2016 - 17/10/2016,C&YPS-Non Delegated,ALDI,14/10/2016,33.74,Provisions - General,"Grocery Stores, Supermarkets",GPC
Statement 19/09/2016 - 17/10/2016,C&YPS-Non Delegated,ALLEN FORD - KETTERING,05/10/2016,32.92,Contract Hire - General,"Automobile and Truck Dealers-Sales, Service, Repai",GPC
Statement 19/09/2016 - 17/10/2016,C&YPS-Non Delegated,Amazon Prime,27/09/2016,7.99,Other Expenditure - General,Continuity/Subscription Merchants,GPC
Statement 19/09/2016 - 17/10/2016,C&YPS-Non Delegated,Amazon UK Marketplace,05/10/2016,72.12,Books - General,Book Stores,GPC
Statement 19/09/2016 - 17/10/2016,C&YPS-Non Delegated,Amazon UK Marketplace,19/09/2016,22.99,IT Equipment - General,Book Stores,GPC
Statement 19/09/2016 - 17/10/2016,C&YPS-Non Delegated,Amazon UK Marketplace,29/09/2016,16.62,IT Equipment - General,Miscellaneous and Specialty Retail Stores,GPC
Statement 19/09/2016 - 17/10/2016,C&YPS-Non Delegated,Amazon UK Marketplace,30/09/2016,-67.95,IT Equipment - General,Miscellaneous and Specialty Retail Stores,GPC
Statement 19/09/2016 - 17/10/2016,C&YPS-Non Delegated,Amazon UK Marketplace,08/10/2016,64,IT Equipment - General,Miscellaneous and Specialty Retail Stores,GPC
Statement 19/09/2016 - 17/10/2016,C&YPS-Non Delegated,Amazon UK Marketplace,10/10/2016,-44.46,IT Equipment - General,Miscellaneous and Specialty Retail Stores,GPC
Statement 19/09/2016 - 17/10/2016,C&YPS-Non Delegated,Amazon UK Marketplace,15/10/2016,134.5,IT Equipment - General,Miscellaneous and Specialty Retail Stores,GPC
Statement 19/09/2016 - 17/10/2016,C&YPS-Non Delegated,Amazon UK Marketplace,22/09/2016,38.63,Materials - General,Miscellaneous and Specialty Retail Stores,GPC
Statement 19/09/2016 - 17/10/2016,C&YPS-Non Delegated,Amazon UK Marketplace,23/09/2016,22.99,Materials - General,Miscellaneous and Specialty Retail Stores,GPC
Statement 19/09/2016 - 17/10/2016,C&YPS-Non Delegated,Amazon UK Marketplace,03/10/2016,15.12,Materials - General,Miscellaneous and Specialty Retail Stores,GPC
Statement 19/09/2016 - 17/10/2016,C&YPS-Non Delegated,Amazon UK Marketplace,07/10/2016,164.97,Materials - General,Book Stores,GPC
Statement 19/09/2016 - 17/10/2016,C&YPS-Non Delegated,Amazon UK Marketplace,10/10/2016,6.5,Materials - General,Miscellaneous and Specialty Retail Stores,GPC
Statement 19/09/2016 - 17/10/2016,C&YPS-Non Delegated,Amazon UK Marketplace,19/09/2016,3.45,Other Equipment & Materials - General,Book Stores,GPC
Statement 19/09/2016 - 17/10/2016,C&YPS-Non Delegated,Amazon UK Marketplace,20/09/2016,1.03,Other Equipment & Materials - General,Book Stores,GPC
Statement 19/09/2016 - 17/10/2016,C&YPS-Non Delegated,Amazon UK Marketplace,20/09/2016,1.79,Other Equipment & Materials - General,Miscellaneous and Specialty Retail Stores,GPC
Statement 19/09/2016 - 17/10/2016,C&YPS-Non Delegated,Amazon UK Marketplace,20/09/2016,2.1,Other Equipment & Materials - General,Miscellaneous and Specialty Retail Stores,GPC
Statement 19/09/2016 - 17/10/2016,C&YPS-Non Delegated,Amazon UK Marketplace,20/09/2016,1.85,Other Equipment & Materials - General,Miscellaneous and Specialty Retail Stores,GPC
Statement 19/09/2016 - 17/10/2016,C&YPS-Non Delegated,Amazon UK Marketplace,28/09/2016,12.6,Other Equipment & Materials - General,Miscellaneous and Specialty Retail Stores,GPC
Statement 19/09/2016 - 17/10/2016,C&YPS-Non Delegated,Amazon UK Marketplace,29/09/2016,24.73,Other Equipment & Materials - General,Book Stores,GPC
Statement 19/09/2016 - 17/10/2016,C&YPS-Non Delegated,Amazon UK Marketplace,06/10/2016,5.16,Other Equipment & Materials - General,Miscellaneous and Specialty Retail Stores,GPC
Statement 19/09/2016 - 17/10/2016,C&YPS-Non Delegated,Amazon UK Marketplace,11/10/2016,22.48,Other Equipment & Materials - General,Book Stores,GPC
Statement 19/09/2016 - 17/10/2016,C&YPS-Non Delegated,Amazon UK Marketplace,11/10/2016,12.6,Other Equipment & Materials - General,Book Stores,GPC
Statement 19/09/2016 - 17/10/2016,C&YPS-Non Delegated,Amazon UK Marketplace,08/10/2016,4.25,Other Expenditure - General,Miscellaneous and Specialty Retail Stores,GPC
Statement 19/09/2016 - 17/10/2016,C&YPS-Non Delegated,Amazon UK Marketplace,26/09/2016,4.69,Stationery - General,Miscellaneous and Specialty Retail Stores,GPC
Statement 19/09/2016 - 17/10/2016,C&YPS-Non Delegated,Amazon UK Marketplace,04/10/2016,7.5,Stationery - General,Book Stores,GPC
Statement 19/09/2016 - 17/10/2016,C&YPS-Non Delegated,Amazon UK Marketplace,05/10/2016,6.76,Stationery - General,Miscellaneous and Specialty Retail Stores,GPC
Statement 19/09/2016 - 17/10/2016,C&YPS-Non Delegated,Amazon UK Marketplace,12/10/2016,12.03,Stationery - General,Miscellaneous and Specialty Retail Stores,GPC
Statement 19/09/2016 - 17/10/2016,C&YPS-Non Delegated,Amazon UK Retail,23/09/2016,7.03,General Equipment - General,Direct Marketers - Other,GPC
Statement 19/09/2016 - 17/10/2016,C&YPS-Non Delegated,Amazon UK Retail,15/10/2016,42.2,General Equipment - General,Direct Marketers - Other,GPC
Statement 19/09/2016 - 17/10/2016,C&YPS-Non Delegated,Amazon UK Retail,25/09/2016,30.49,IT Equipment - General,Direct Marketers - Other,GPC
Statement 19/09/2016 - 17/10/2016,C&YPS-Non Delegated,Amazon UK Retail,29/09/2016,117.78,IT Equipment - General,Direct Marketers - Other,GPC
Statement 19/09/2016 - 17/10/2016,C&YPS-Non Delegated,Amazon UK Retail,29/09/2016,106.03,IT Equipment - General,Direct Marketers - Other,GPC
Statement 19/09/2016 - 17/10/2016,C&YPS-Non Delegated,Amazon UK Retail,01/10/2016,25.37,IT Equipment - General,Direct Marketers - Other,GPC
Statement 19/09/2016 - 17/10/2016,C&YPS-Non Delegated,Amazon UK Retail,03/10/2016,-92.39,IT Equipment - General,Direct Marketers - Other,GPC
Statement 19/09/2016 - 17/10/2016,C&YPS-Non Delegated,Amazon UK Retail,03/10/2016,-95.69,IT Equipment - General,Direct Marketers - Other,GPC
Statement 19/09/2016 - 17/10/2016,C&YPS-Non Delegated,Amazon UK Retail,06/10/2016,106.03,IT Equipment - General,Direct Marketers - Other,GPC
Statement 19/09/2016 - 17/10/2016,C&YPS-Non Delegated,Amazon UK Retail,12/10/2016,71.79,Materials - General,Direct Marketers - Other,GPC
Statement 19/09/2016 - 17/10/2016,C&YPS-Non Delegated,Amazon UK Retail,15/10/2016,17.6,Materials - General,Direct Marketers - Other,GPC
Statement 19/09/2016 - 17/10/2016,C&YPS-Non Delegated,Amazon UK Retail,22/09/2016,11.24,Other Equipment & Materials - General,Direct Marketers - Other,GPC
Statement 19/09/2016 - 17/10/2016,C&YPS-Non Delegated,Amazon UK Retail,03/10/2016,19.98,Other Expenditure - General,Direct Marketers - Other,GPC
Statement 19/09/2016 - 17/10/2016,C&YPS-Non Delegated,Amazon UK Retail,09/10/2016,20.59,Other Expenditure - General,Direct Marketers - Other,GPC
Statement 19/09/2016 - 17/10/2016,C&YPS-Non Delegated,Amazon UK Retail,11/10/2016,-20.59,Other Expenditure - General,Direct Marketers - Other,GPC
Statement 19/09/2016 - 17/10/2016,C&YPS-Non Delegated,Amazon UK Retail,27/09/2016,12.77,Stationery - General,Direct Marketers - Other,GPC
Statement 19/09/2016 - 17/10/2016,C&YPS-Non Delegated,AMAZON UK RETAIL AMAZON.C,29/09/2016,106.03,IT Equipment - General,Miscellaneous and Specialty Retail Stores,GPC
Statement 19/09/2016 - 17/10/2016,C&YPS-Non Delegated,AMAZON UK RETAIL AMAZON.C,04/10/2016,25.37,IT Equipment - General,Miscellaneous and Specialty Retail Stores,GPC
Statement 19/09/2016 - 17/10/2016,C&YPS-Non Delegated,AMAZON UK RETAIL AMAZON.C,20/09/2016,160.62,Materials - General,Miscellaneous and Specialty Retail Stores,GPC
Statement 19/09/2016 - 17/10/2016,C&YPS-Non Delegated,AMAZON UK RETAIL AMAZON.C,15/10/2016,17.6,Materials - General,Miscellaneous and Specialty Retail Stores,GPC
Statement 19/09/2016 - 17/10/2016,C&YPS-Non Delegated,AMAZON UK RETAIL AMAZON.C,08/10/2016,23.34,Other Expenditure - General,Miscellaneous and Specialty Retail Stores,GPC
Statement 19/09/2016 - 17/10/2016,C&YPS-Non Delegated,AMAZON UK RETAIL AMAZON.C,03/10/2016,10.84,Stationery - General,Miscellaneous and Specialty Retail Stores,GPC
Statement 19/09/2016 - 17/10/2016,C&YPS-Non Delegated,ANAND SHOES,05/10/2016,19,General Equipment - General,"Shoe Repair Shops, Shoe Shine Parlors, Hat Cleanin",GPC
Statement 19/09/2016 - 17/10/2016,C&YPS-Non Delegated,ARGOS LTD,03/10/2016,41.66,Catering Equipment - General,Discount Stores,GPC
Statement 19/09/2016 - 17/10/2016,C&YPS-Non Delegated,ARGOS LTD,05/10/2016,16.66,Catering Equipment - General,Discount Stores,GPC
Statement 19/09/2016 - 17/10/2016,C&YPS-Non Delegated,ARGOS LTD,12/10/2016,29.16,General Equipment - General,Discount Stores,GPC
Statement 19/09/2016 - 17/10/2016,C&YPS-Non Delegated,ARGOS LTD,12/10/2016,52.48,Materials - General,Discount Stores,GPC
Statement 19/09/2016 - 17/10/2016,C&YPS-Non Delegated,ARGOS LTD,13/10/2016,34.97,Materials - General,Discount Stores,GPC
Statement 19/09/2016 - 17/10/2016,C&YPS-Non Delegated,ARGOS LTD,20/09/2016,49.99,Provisions - General,Discount Stores,GPC
Statement 19/09/2016 - 17/10/2016,C&YPS-Non Delegated,ARGOS RETAIL GROUP,22/09/2016,47.99,Materials - General,Discount Stores,GPC
Statement 19/09/2016 - 17/10/2016,C&YPS-Non Delegated,ARGOS RETAIL GROUP,22/09/2016,148.94,Materials - General,Discount Stores,GPC
Statement 19/09/2016 - 17/10/2016,C&YPS-Non Delegated,ARGOS RETAIL GROUP,22/09/2016,54.98,Materials - General,Discount Stores,GPC
Statement 19/09/2016 - 17/10/2016,C&YPS-Non Delegated,ARGOS RETAIL GROUP,22/09/2016,119.98,Materials - General,Discount Stores,GPC
Statement 19/09/2016 - 17/10/2016,C&YPS-Non Delegated,ARGOS RETAIL GROUP,22/09/2016,194.97,Materials - General,Discount Stores,GPC
Statement 19/09/2016 - 17/10/2016,C&YPS-Non Delegated,ARGOS RETAIL GROUP,22/09/2016,318.93,Materials - General,Discount Stores,GPC
Statement 19/09/2016 - 17/10/2016,C&YPS-Non Delegated,ARGOS RETAIL GROUP,19/09/2016,43.94,Other Equipment & Materials - General,Discount Stores,GPC
Statement 19/09/2016 - 17/10/2016,C&YPS-Non Delegated,ARGOS RETAIL GROUP,04/10/2016,234.88,Other Equipment & Materials - General,Discount Stores,GPC
Statement 19/09/2016 - 17/10/2016,C&YPS-Non Delegated,ARGOS RETAIL GROUP,04/10/2016,40.93,Other Equipment & Materials - General,Discount Stores,GPC
Statement 19/09/2016 - 17/10/2016,C&YPS-Non Delegated,ARGOS RETAIL GROUP,19/09/2016,506.94,Other Transfer Payments - Section 23 Grants,Discount Stores,GPC
Statement 19/09/2016 - 17/10/2016,C&YPS-Non Delegated,ARGOS RETAIL GROUP,23/09/2016,43.94,Provisions - General,Discount Stores,GPC
Statement 19/09/2016 - 17/10/2016,C&YPS-Non Delegated,ARGOS RETAIL GROUP,07/10/2016,36.93,Provisions - General,Discount Stores,GPC
Statement 19/09/2016 - 17/10/2016,C&YPS-Non Delegated,ARGOS RETAIL GROUP,13/10/2016,169.98,Provisions - General,Discount Stores,GPC
Statement 19/09/2016 - 17/10/2016,C&YPS-Non Delegated,ARRIVA PASSENGER S,23/09/2016,16.5,Provisions - General,Automotive Repair Shops (non-dealer),GPC
Statement 19/09/2016 - 17/10/2016,C&YPS-Non Delegated,ASDA HOME SHOPPING,26/09/2016,29.19,Other Expenditure - General,"Grocery Stores, Supermarkets",GPC
Statement 19/09/2016 - 17/10/2016,C&YPS-Non Delegated,ASDA STORES,19/09/2016,38.5,Other Expenditure - General,"Grocery Stores, Supermarkets",GPC
Statement 19/09/2016 - 17/10/2016,C&YPS-Non Delegated,ASDA SUPERSTORE,13/10/2016,66,Materials - General,"Grocery Stores, Supermarkets",GPC
Statement 19/09/2016 - 17/10/2016,C&YPS-Non Delegated,ASDA SUPERSTORE,29/09/2016,7.5,Other Expenditure - General,"Grocery Stores, Supermarkets",GPC
Statement 19/09/2016 - 17/10/2016,C&YPS-Non Delegated,ASDA SUPERSTORE,05/10/2016,7.31,Other Expenditure - General,"Grocery Stores, Supermarkets",GPC
Statement 19/09/2016 - 17/10/2016,C&YPS-Non Delegated,ASDA SUPERSTORE,12/10/2016,151.46,Provisions - General,"Grocery Stores, Supermarkets",GPC
Statement 19/09/2016 - 17/10/2016,C&YPS-Non Delegated,AUTOSCREEN LTD,12/10/2016,130,Contract Hire - General,Automotive Repair Shops (non-dealer),GPC
Statement 19/09/2016 - 17/10/2016,C&YPS-Non Delegated,B&M Retail,10/10/2016,35.22,General Equipment - General,Discount Stores,GPC
Statement 19/09/2016 - 17/10/2016,C&YPS-Non Delegated,B&M RETAIL LTD,28/09/2016,182.29,Materials - General,Discount Stores,GPC
Statement 19/09/2016 - 17/10/2016,C&YPS-Non Delegated,B&M RETAIL LTD,28/09/2016,177.45,Materials - General,Discount Stores,GPC
Statement 19/09/2016 - 17/10/2016,C&YPS-Non Delegated,B&M RETAIL LTD,13/10/2016,49.98,Other Equipment & Materials - General,Discount Stores,GPC
Statement 19/09/2016 - 17/10/2016,C&YPS-Non Delegated,BANBURY POSTICHE LTD,06/10/2016,152,Materials - General,Wig and Toupee Shops,GPC
Statement 19/09/2016 - 17/10/2016,C&YPS-Non Delegated,BBCN LEICESTER WIGSTON,12/10/2016,198.81,Other Transfer Payments - Section 23 Grants,Child Care Services,GPC
Statement 19/09/2016 - 17/10/2016,C&YPS-Non Delegated,BLAKEMORE/TATES LIMITE,06/10/2016,5.76,Materials - General,"Grocery Stores, Supermarkets",GPC
Statement 19/09/2016 - 17/10/2016,C&YPS-Non Delegated,BT BILL PAYMENT 2,20/09/2016,135,IT Equipment - Rental,Telecommunication Equipment Including Telephone Sa,GPC
Statement 19/09/2016 - 17/10/2016,C&YPS-Non Delegated,BT BILL PAYMENT 2,20/09/2016,84.9,Telephones - General,Telecommunication Equipment Including Telephone Sa,GPC
Statement 19/09/2016 - 17/10/2016,C&YPS-Non Delegated,BT BILL PAYMENT 2,20/09/2016,57.12,Telephones - General,Telecommunication Equipment Including Telephone Sa,GPC
Statement 19/09/2016 - 17/10/2016,C&YPS-Non Delegated,BT BILL PAYMENT 2,20/09/2016,85.06,Telephones - General,Telecommunication Equipment Including Telephone Sa,GPC
Statement 19/09/2016 - 17/10/2016,C&YPS-Non Delegated,BT BILL PAYMENT 2,29/09/2016,86.27,Telephones - General,Telecommunication Equipment Including Telephone Sa,GPC
Statement 19/09/2016 - 17/10/2016,C&YPS-Non Delegated,BT BILL PAYMENT 2,11/10/2016,55.89,Telephones - General,Telecommunication Equipment Including Telephone Sa,GPC
Statement 19/09/2016 - 17/10/2016,C&YPS-Non Delegated,BYRITE ELECTRICALS,19/09/2016,10,Materials - General,Household Appliance Stores,GPC
Statement 19/09/2016 - 17/10/2016,C&YPS-Non Delegated,CARPET CUTS,07/10/2016,400,Materials - General,Floor Coverings   Stores,GPC
Statement 19/09/2016 - 17/10/2016,C&YPS-Non Delegated,CARPET CUTS,07/10/2016,125,Materials - General,Floor Coverings   Stores,GPC
Statement 19/09/2016 - 17/10/2016,C&YPS-Non Delegated,CARPHONE WAREHOUSE,11/10/2016,17.99,Communications Equipment - General,Telecommunication Equipment Including Telephone Sa,GPC
Statement 19/09/2016 - 17/10/2016,C&YPS-Non Delegated,CENTRAL CO-OP RETA,03/10/2016,5,Other Equipment & Materials - General,Department Stores,GPC
Statement 19/09/2016 - 17/10/2016,C&YPS-Non Delegated,CENTRAL ENG COOP,07/10/2016,70,Client/Volunteers - General,Department Stores,GPC
Statement 19/09/2016 - 17/10/2016,C&YPS-Non Delegated,CENTRAL ENG COOP,28/09/2016,8.51,Materials - General,Department Stores,GPC
Statement 19/09/2016 - 17/10/2016,C&YPS-Non Delegated,CENTRAL ENG COOP,06/10/2016,14.53,Other Expenditure - General,Department Stores,GPC
Statement 19/09/2016 - 17/10/2016,C&YPS-Non Delegated,CENTRAL ENG COOP,19/09/2016,24.36,Subsistence - General,Department Stores,GPC
Statement 19/09/2016 - 17/10/2016,C&YPS-Non Delegated,CENTRAL ENG COOP,27/09/2016,9.68,Subsistence - General,Department Stores,GPC
Statement 19/09/2016 - 17/10/2016,C&YPS-Non Delegated,CONFERENCE ASTON,26/09/2016,7.95,Training Expenses - General,"Lodging-Hotels, Motels, Resorts",GPC
Statement 19/09/2016 - 17/10/2016,C&YPS-Non Delegated,COSTA COFFEE,27/09/2016,12,Other Expenditure - General,"Miscellaneous Food Stores-Convenience Stores, Mark",GPC
Statement 19/09/2016 - 17/10/2016,C&YPS-Non Delegated,DI SOPRA LTD,04/10/2016,59.05,Grants - General,"Eating Places, Restaurants",GPC
Statement 19/09/2016 - 17/10/2016,C&YPS-Non Delegated,DMU FINANCE MOBILE,21/09/2016,189.88,Other Transfer Payments - Sector 17- Other,"Colleges, Universities, Professional Schools, and",GPC
Statement 19/09/2016 - 17/10/2016,C&YPS-Non Delegated,DRAWING & TALKING,29/09/2016,180,Training Expenses - General,Schools and Educational Services-Not Elsewhere Cla,GPC
Statement 19/09/2016 - 17/10/2016,C&YPS-Non Delegated,DUNELM (SOFT FURNISHIN,10/10/2016,39.98,Other Equipment & Materials - General,"Drapery, Window Coverings, and Upholstery Stores",GPC
Statement 19/09/2016 - 17/10/2016,C&YPS-Non Delegated,DUNELM LTD,03/10/2016,78.96,Materials - General,"Drapery, Window Coverings, and Upholstery Stores",GPC
Statement 19/09/2016 - 17/10/2016,C&YPS-Non Delegated,EAST MIDLANDS TRAI,27/09/2016,9.1,Casual/Essential - General,Passenger Railways,GPC
Statement 19/09/2016 - 17/10/2016,C&YPS-Non Delegated,EAST MIDLANDS TRAI,01/10/2016,38.7,Other Transport Costs - General,Passenger Railways,GPC
Statement 19/09/2016 - 17/10/2016,C&YPS-Non Delegated,EASTMIDLANDSTRAINS,23/09/2016,38.4,Casual/Essential - General,Passenger Railways,GPC
Statement 19/09/2016 - 17/10/2016,C&YPS-Non Delegated,EE LIMITED 4333,19/09/2016,11.99,Communications Equipment - General,Telecommunication Equipment Including Telephone Sa,GPC
Statement 19/09/2016 - 17/10/2016,C&YPS-Non Delegated,ESPO,20/09/2016,-16.8,Stationery - General,Government Services-Not Elsewhere Classified,GPC
Statement 19/09/2016 - 17/10/2016,C&YPS-Non Delegated,ESPO,21/09/2016,133.8,Stationery - General,Wholesale Clubs,GPC
Statement 19/09/2016 - 17/10/2016,C&YPS-Non Delegated,FAST KEY SERVICES LIMI,05/10/2016,60.1,Other Expenditure - General,Business Services-Not Elsewhere Classified,GPC
Statement 19/09/2016 - 17/10/2016,C&YPS-Non Delegated,FAST KEY SERVICES LIMI,14/10/2016,36.1,Other Expenditure - General,Business Services-Not Elsewhere Classified,GPC
Statement 19/09/2016 - 17/10/2016,C&YPS-Non Delegated,FOSTERTALK,29/09/2016,15,Recruitment Advertising - General,"Accounting, Auditing, and Bookkeeping Services",GPC
Statement 19/09/2016 - 17/10/2016,C&YPS-Non Delegated,GREEN MOTION LEICESTER,23/09/2016,-322,Public Transport -  Staff - General,Automobile Rental Agency,GPC
Statement 19/09/2016 - 17/10/2016,C&YPS-Non Delegated,GREEN MOTION LEICESTER,27/09/2016,240,Public Transport -  Staff - General,Automobile Rental Agency,GPC
Statement 19/09/2016 - 17/10/2016,C&YPS-Non Delegated,GREEN MOTION LEICESTER,27/09/2016,400,Public Transport -  Staff - General,Automobile Rental Agency,GPC
Statement 19/09/2016 - 17/10/2016,C&YPS-Non Delegated,GREEN MOTION LEICESTER,30/09/2016,-332.5,Public Transport -  Staff - General,Automobile Rental Agency,GPC
Statement 19/09/2016 - 17/10/2016,C&YPS-Non Delegated,GRO HM PASSPORT OFFICE,30/09/2016,9.25,Other Expenditure - General,Government Services-Not Elsewhere Classified,GPC
Statement 19/09/2016 - 17/10/2016,C&YPS-Non Delegated,GRO HM PASSPORT OFFICE,22/09/2016,9.25,Other Transfer Payments - Section 23 Grants,Government Services-Not Elsewhere Classified,GPC
Statement 19/09/2016 - 17/10/2016,C&YPS-Non Delegated,HOPE AND ANCHOR,06/10/2016,64,Grants - General,"Eating Places, Restaurants",GPC
Statement 19/09/2016 - 17/10/2016,C&YPS-Non Delegated,HOTEL PAID VIA EVIIVO,22/09/2016,75,Other Equipment & Materials - General,Business Services-Not Elsewhere Classified,GPC
Statement 19/09/2016 - 17/10/2016,C&YPS-Non Delegated,IMAGO,27/09/2016,300,Subsistence - General,"Lodging-Hotels, Motels, Resorts",GPC
Statement 19/09/2016 - 17/10/2016,C&YPS-Non Delegated,ITUNES.COM/BILL,23/09/2016,124.99,IT Equipment - General,Record Shops,GPC
Statement 19/09/2016 - 17/10/2016,C&YPS-Non Delegated,ITUNES.COM/BILL,23/09/2016,99.99,IT Equipment - General,Record Shops,GPC
Statement 19/09/2016 - 17/10/2016,C&YPS-Non Delegated,ITUNES.COM/BILL,30/09/2016,19.98,IT Equipment - General,Record Shops,GPC
Statement 19/09/2016 - 17/10/2016,C&YPS-Non Delegated,ITUNES.COM/BILL,30/09/2016,19.98,IT Equipment - General,Record Shops,GPC
Statement 19/09/2016 - 17/10/2016,C&YPS-Non Delegated,J D SPORTS 270,28/09/2016,112.05,Personal Needs of Clients - General,Sporting Goods Stores,GPC
Statement 19/09/2016 - 17/10/2016,C&YPS-Non Delegated,KFC NOTTINGHAM,21/09/2016,7.67,Subsistence - General,Fast-Food Restaurants (Quick Payment Service Pilot,GPC
Statement 19/09/2016 - 17/10/2016,C&YPS-Non Delegated,KIRKLEES COUNCIL,14/10/2016,11.22,Other Transfer Payments - Section 23 Grants,Government Services-Not Elsewhere Classified,GPC
Statement 19/09/2016 - 17/10/2016,C&YPS-Non Delegated,LEIC CITY COUNCIL,03/10/2016,13,Other Expenditure - General,Government Services-Not Elsewhere Classified,GPC
Statement 19/09/2016 - 17/10/2016,C&YPS-Non Delegated,LEIC CITY COUNCIL,19/09/2016,23,Other Transfer Payments - Section 23 Grants,Government Services-Not Elsewhere Classified,GPC
Statement 19/09/2016 - 17/10/2016,C&YPS-Non Delegated,LEIC CITY COUNCIL,29/09/2016,23,Other Transfer Payments - Section 23 Grants,Government Services-Not Elsewhere Classified,GPC
Statement 19/09/2016 - 17/10/2016,C&YPS-Non Delegated,LEIC CITY COUNCIL,04/10/2016,23,Other Transfer Payments - Section 23 Grants,Government Services-Not Elsewhere Classified,GPC
Statement 19/09/2016 - 17/10/2016,C&YPS-Non Delegated,LEIC CITY COUNCIL,11/10/2016,13,Other Transfer Payments - Section 23 Grants,Government Services-Not Elsewhere Classified,GPC
Statement 19/09/2016 - 17/10/2016,C&YPS-Non Delegated,LEIC CITY COUNCIL,11/10/2016,13,Other Transfer Payments - Section 23 Grants,Government Services-Not Elsewhere Classified,GPC
Statement 19/09/2016 - 17/10/2016,C&YPS-Non Delegated,LEIC CITY COUNCIL,23/09/2016,38.45,Subscriptions - General,Government Services-Not Elsewhere Classified,GPC
Statement 19/09/2016 - 17/10/2016,C&YPS-Non Delegated,LEICESTERSHIRE C COUNC,03/10/2016,16,Other Transfer Payments - Section 23 Grants,Government Services-Not Elsewhere Classified,GPC
Statement 19/09/2016 - 17/10/2016,C&YPS-Non Delegated,LIDL UK,19/09/2016,97.68,Provisions - General,"Grocery Stores, Supermarkets",GPC
Statement 19/09/2016 - 17/10/2016,C&YPS-Non Delegated,LIDL UK,21/09/2016,3.94,Provisions - General,"Grocery Stores, Supermarkets",GPC
Statement 19/09/2016 - 17/10/2016,C&YPS-Non Delegated,LIDL UK,01/10/2016,24.86,Provisions - General,"Grocery Stores, Supermarkets",GPC
Statement 19/09/2016 - 17/10/2016,C&YPS-Non Delegated,LIDL UK,10/10/2016,8.72,Provisions - General,"Grocery Stores, Supermarkets",GPC
Statement 19/09/2016 - 17/10/2016,C&YPS-Non Delegated,LINKEDIN-342 4633683,13/10/2016,227.94,Recruitment Advertising - General,Continuity/Subscription Merchants,GPC
Statement 19/09/2016 - 17/10/2016,C&YPS-Non Delegated,LONDON BOR'OF HILL,29/09/2016,11,Other Expenditure - General,Government Services-Not Elsewhere Classified,GPC
Statement 19/09/2016 - 17/10/2016,C&YPS-Non Delegated,LOVE2SHOP.CO.UK,20/09/2016,30,Public Transport -  Staff - General,"Civic, Social, and Fraternal Associations",GPC
Statement 19/09/2016 - 17/10/2016,C&YPS-Non Delegated,LOVE2SHOP.CO.UK,23/09/2016,100,Public Transport -  Staff - General,"Civic, Social, and Fraternal Associations",GPC
Statement 19/09/2016 - 17/10/2016,C&YPS-Non Delegated,LSPS,10/10/2016,145.29,Provisions - General,Business Services-Not Elsewhere Classified,GPC
Statement 19/09/2016 - 17/10/2016,C&YPS-Non Delegated,MARKS&SPENCER PLC SF,13/10/2016,3.49,Other Expenditure - General,"Grocery Stores, Supermarkets",GPC
Statement 19/09/2016 - 17/10/2016,C&YPS-Non Delegated,MCDONALDS,22/09/2016,3.59,Subsistence - General,Fast-Food Restaurants (Quick Payment Service Pilot,GPC
Statement 19/09/2016 - 17/10/2016,C&YPS-Non Delegated,MCDONALDS,23/09/2016,3.28,Subsistence - General,Fast-Food Restaurants (Quick Payment Service Pilot,GPC
Statement 19/09/2016 - 17/10/2016,C&YPS-Non Delegated,MCDONALDS,27/09/2016,5.79,Subsistence - General,Fast-Food Restaurants (Quick Payment Service Pilot,GPC
Statement 19/09/2016 - 17/10/2016,C&YPS-Non Delegated,MCDONALDS,28/09/2016,3.59,Subsistence - General,Fast-Food Restaurants (Quick Payment Service Pilot,GPC
Statement 19/09/2016 - 17/10/2016,C&YPS-Non Delegated,MCDONALDS,04/10/2016,1.98,Subsistence - General,Fast-Food Restaurants (Quick Payment Service Pilot,GPC
Statement 19/09/2016 - 17/10/2016,C&YPS-Non Delegated,MCDONALDS,05/10/2016,2.68,Subsistence - General,Fast-Food Restaurants (Quick Payment Service Pilot,GPC
Statement 19/09/2016 - 17/10/2016,C&YPS-Non Delegated,MCV FRANCHISING LTD,21/09/2016,156,Other Expenditure - General,Car Washes,GPC
Statement 19/09/2016 - 17/10/2016,C&YPS-Non Delegated,MIKE BS SECURITY LOCKSMIT,13/10/2016,145.83,Other Equipment & Materials - General,Business Services-Not Elsewhere Classified,GPC
Statement 19/09/2016 - 17/10/2016,C&YPS-Non Delegated,MIND HINCKLEY FURNITUR,07/10/2016,90,Materials - General,"Furniture, Home Furnishings and Equipment Stores,",GPC
Statement 19/09/2016 - 17/10/2016,C&YPS-Non Delegated,MIVESI,05/10/2016,62.4,Grants - General,"Eating Places, Restaurants",GPC
Statement 19/09/2016 - 17/10/2016,C&YPS-Non Delegated,MOBYMEMORY.CO.UK,21/09/2016,6.99,Telephones - General,Electrical Parts and Equipment,GPC
Statement 19/09/2016 - 17/10/2016,C&YPS-Non Delegated,NCC INCOME,19/09/2016,11.8,Other Transfer Payments - Section 23 Grants,Government Services-Not Elsewhere Classified,GPC
Statement 19/09/2016 - 17/10/2016,C&YPS-Non Delegated,NCP LIMITED,03/10/2016,6,Casual/Essential - General,Automobile Parking Lots and Garages,GPC
Statement 19/09/2016 - 17/10/2016,C&YPS-Non Delegated,NCP LIMITED,10/10/2016,1.5,Casual/Essential - General,Automobile Parking Lots and Garages,GPC
Statement 19/09/2016 - 17/10/2016,C&YPS-Non Delegated,NEW & NEARLY,28/09/2016,140,Materials - General,Household Appliance Stores,GPC
Statement 19/09/2016 - 17/10/2016,C&YPS-Non Delegated,NEW & NEARLY,28/09/2016,400,Materials - General,Household Appliance Stores,GPC
Statement 19/09/2016 - 17/10/2016,C&YPS-Non Delegated,NEW & NEARLY,28/09/2016,400,Materials - General,Household Appliance Stores,GPC
Statement 19/09/2016 - 17/10/2016,C&YPS-Non Delegated,NEW & NEARLY,05/10/2016,95,Materials - General,Household Appliance Stores,GPC
Statement 19/09/2016 - 17/10/2016,C&YPS-Non Delegated,NEW & NEARLY,07/10/2016,188,Materials - General,Household Appliance Stores,GPC
Statement 19/09/2016 - 17/10/2016,C&YPS-Non Delegated,NEW & NEARLY,07/10/2016,400,Materials - General,Household Appliance Stores,GPC
Statement 19/09/2016 - 17/10/2016,C&YPS-Non Delegated,NOHO,01/10/2016,22.5,Subsistence - General,"Drinking Places (Alcoholic Beverages)-Bars, Tavern",GPC
Statement 19/09/2016 - 17/10/2016,C&YPS-Non Delegated,ODEON BROADWAY PLAZA,12/10/2016,10.8,Public Transport -  Staff - General,Motion Picture Theatres,GPC
Statement 19/09/2016 - 17/10/2016,C&YPS-Non Delegated,PAPERCHASE,30/09/2016,12.99,Materials - General,"Gift, Card, Novelty, and Souvenir Shops",GPC
Statement 19/09/2016 - 17/10/2016,C&YPS-Non Delegated,PAPERCHASE,26/09/2016,16.66,Other Equipment & Materials - General,"Gift, Card, Novelty, and Souvenir Shops",GPC
Statement 19/09/2016 - 17/10/2016,C&YPS-Non Delegated,PAYPAL  ABCBOOKSLTD,22/09/2016,92.25,Other Expenditure - General,Book Stores,GPC
Statement 19/09/2016 - 17/10/2016,C&YPS-Non Delegated,PAYPAL  ABCBOOKSLTD,27/09/2016,-73.8,Other Expenditure - General,Book Stores,GPC
Statement 19/09/2016 - 17/10/2016,C&YPS-Non Delegated,PAYPAL  CHARLIESCHA,28/09/2016,77.12,Other Expenditure - General,Book Stores,GPC
Statement 19/09/2016 - 17/10/2016,C&YPS-Non Delegated,PAYPAL  CRSFURFABRI,30/09/2016,51.98,Other Equipment & Materials - General,"Artist Supply Stores, Craft Shops",GPC
Statement 19/09/2016 - 17/10/2016,C&YPS-Non Delegated,PAYPAL  MJ TRADER,07/10/2016,27.08,Provisions - General,"Furniture, Home Furnishings and Equipment Stores,",GPC
Statement 19/09/2016 - 17/10/2016,C&YPS-Non Delegated,PAYPAL  SENTEQ,11/10/2016,252.95,Other Equipment & Materials - General,"Colleges, Universities, Professional Schools, and",GPC
Statement 19/09/2016 - 17/10/2016,C&YPS-Non Delegated,PAYPAL  VISUALIMPAI,29/09/2016,175,General Equipment - General,Charitable and Social Service Organizations,GPC
Statement 19/09/2016 - 17/10/2016,C&YPS-Non Delegated,PAYPAL  VTPLASTICS,28/09/2016,4.35,General Equipment - General,Miscellaneous and Specialty Retail Stores,GPC
Statement 19/09/2016 - 17/10/2016,C&YPS-Non Delegated,PIZZA HUT 782,11/10/2016,2.99,Subsistence - General,"Eating Places, Restaurants",GPC
Statement 19/09/2016 - 17/10/2016,C&YPS-Non Delegated,PIZZA HUT 782,11/10/2016,5.34,Subsistence - General,"Eating Places, Restaurants",GPC
Statement 19/09/2016 - 17/10/2016,C&YPS-Non Delegated,POST OFFICE COUNTER,27/09/2016,110,Postal Services - General,Postage Stamps,GPC
Statement 19/09/2016 - 17/10/2016,C&YPS-Non Delegated,POST OFFICE COUNTER,05/10/2016,175,Postal Services - General,Postage Stamps,GPC
Statement 19/09/2016 - 17/10/2016,C&YPS-Non Delegated,POUNDLAND LTD 1219,04/10/2016,15.2,Materials - General,Discount Stores,GPC
Statement 19/09/2016 - 17/10/2016,C&YPS-Non Delegated,PREMIER INN44521250,27/09/2016,372,Subsistence - General,PREMIER TRAVEL,GPC
Statement 19/09/2016 - 17/10/2016,C&YPS-Non Delegated,RNIB CHARITY,29/09/2016,98.73,General Equipment - General,Laboratory/Medical/Dental/Ophthalmic Hospital Equi,GPC
Statement 19/09/2016 - 17/10/2016,C&YPS-Non Delegated,RNIB CHARITY,10/10/2016,15,General Equipment - General,Laboratory/Medical/Dental/Ophthalmic Hospital Equi,GPC
Statement 19/09/2016 - 17/10/2016,C&YPS-Non Delegated,ROYAL MAIL ONLINE SHOP,05/10/2016,128,Postal Services - General,Postage Stamps,GPC
Statement 19/09/2016 - 17/10/2016,C&YPS-Non Delegated,SAINSBURY'S S/MKT,12/10/2016,10.75,Materials - General,"Grocery Stores, Supermarkets",GPC
Statement 19/09/2016 - 17/10/2016,C&YPS-Non Delegated,SAINSBURY'S S/MKT,13/10/2016,6.87,Materials - General,"Grocery Stores, Supermarkets",GPC
Statement 19/09/2016 - 17/10/2016,C&YPS-Non Delegated,SAINSBURY'S S/MKT,27/09/2016,23.3,Other Expenditure - General,"Grocery Stores, Supermarkets",GPC
Statement 19/09/2016 - 17/10/2016,C&YPS-Non Delegated,SAINSBURY'S S/MKT,11/10/2016,26.7,Other Expenditure - General,"Grocery Stores, Supermarkets",GPC
Statement 19/09/2016 - 17/10/2016,C&YPS-Non Delegated,SAINSBURY'S S/MKT,28/09/2016,41.08,Provisions - General,"Grocery Stores, Supermarkets",GPC
Statement 19/09/2016 - 17/10/2016,C&YPS-Non Delegated,SAINSBURYS S/MKTS,04/10/2016,7.7,Other Expenditure - General,"Grocery Stores, Supermarkets",GPC
Statement 19/09/2016 - 17/10/2016,C&YPS-Non Delegated,SAINSBURYS S/MKTS,20/09/2016,98.22,Provisions - General,"Grocery Stores, Supermarkets",GPC
Statement 19/09/2016 - 17/10/2016,C&YPS-Non Delegated,SAINSBURYS S/MKTS,05/10/2016,1.75,Provisions - General,"Grocery Stores, Supermarkets",GPC
Statement 19/09/2016 - 17/10/2016,C&YPS-Non Delegated,SPORTSDIRECT 125,12/10/2016,14.99,Materials - General,Sporting Goods Stores,GPC
Statement 19/09/2016 - 17/10/2016,C&YPS-Non Delegated,ST PANCRAS INTL,20/09/2016,6.15,Subsistence - General,"Eating Places, Restaurants",GPC
Statement 19/09/2016 - 17/10/2016,C&YPS-Non Delegated,STAPLES UK,29/09/2016,48.15,Books - General,"Stationery, Office, and School Supply Stores",GPC
Statement 19/09/2016 - 17/10/2016,C&YPS-Non Delegated,STAPLES UK,13/10/2016,9.04,Other Expenditure - General,"Stationery, Office, and School Supply Stores",GPC
Statement 19/09/2016 - 17/10/2016,C&YPS-Non Delegated,STARBUCKS,19/09/2016,11.19,Other Expenditure - General,Fast-Food Restaurants (Quick Payment Service Pilot,GPC
Statement 19/09/2016 - 17/10/2016,C&YPS-Non Delegated,SUBWAY,20/09/2016,4,Subsistence - General,"Eating Places, Restaurants",GPC
Statement 19/09/2016 - 17/10/2016,C&YPS-Non Delegated,SUBWAY,03/10/2016,2.58,Subsistence - General,"Eating Places, Restaurants",GPC
Statement 19/09/2016 - 17/10/2016,C&YPS-Non Delegated,SUGAR & ICE,11/10/2016,13.25,Other Expenditure - General,Miscellaneous and Specialty Retail Stores,GPC
Statement 19/09/2016 - 17/10/2016,C&YPS-Non Delegated,TESCO STORE 2849,27/09/2016,7.99,Materials - General,"Grocery Stores, Supermarkets",GPC
Statement 19/09/2016 - 17/10/2016,C&YPS-Non Delegated,TESCO STORE 2849,06/10/2016,21.32,Materials - General,"Grocery Stores, Supermarkets",GPC
Statement 19/09/2016 - 17/10/2016,C&YPS-Non Delegated,TESCO STORE 2849,05/10/2016,35,Other Equipment & Materials - General,"Grocery Stores, Supermarkets",GPC
Statement 19/09/2016 - 17/10/2016,C&YPS-Non Delegated,TESCO STORES 6135,28/09/2016,12.25,Materials - General,"Grocery Stores, Supermarkets",GPC
Statement 19/09/2016 - 17/10/2016,C&YPS-Non Delegated,TFH SPECIAL NEEDS,12/10/2016,17.88,Other Equipment & Materials - General,"Hobby, Toy, and Game Shops",GPC
Statement 19/09/2016 - 17/10/2016,C&YPS-Non Delegated,THE BOOK PEOPLE,29/09/2016,6.99,Books - General,Book Stores,GPC
Statement 19/09/2016 - 17/10/2016,C&YPS-Non Delegated,THE BOOK PEOPLE,29/09/2016,84.9,Books - General,Book Stores,GPC
Statement 19/09/2016 - 17/10/2016,C&YPS-Non Delegated,THE BOOK PEOPLE,04/10/2016,7.98,Books - General,Book Stores,GPC
Statement 19/09/2016 - 17/10/2016,C&YPS-Non Delegated,THE BOOK PEOPLE,13/10/2016,120.85,Books - General,Book Stores,GPC
Statement 19/09/2016 - 17/10/2016,C&YPS-Non Delegated,THE BOOK PEOPLE,13/10/2016,29.95,Books - General,Book Stores,GPC
Statement 19/09/2016 - 17/10/2016,C&YPS-Non Delegated,THE HOME OFFICE,11/10/2016,72,Other Expenditure - General,Government Services-Not Elsewhere Classified,GPC
Statement 19/09/2016 - 17/10/2016,C&YPS-Non Delegated,THE RANGE,21/09/2016,37.56,Casual/Essential - General,Department Stores,GPC
Statement 19/09/2016 - 17/10/2016,C&YPS-Non Delegated,THE RANGE,04/10/2016,28.32,Other Expenditure - General,Department Stores,GPC
Statement 19/09/2016 - 17/10/2016,C&YPS-Non Delegated,THE WORKS,28/09/2016,25.46,Other Expenditure - General,Discount Stores,GPC
Statement 19/09/2016 - 17/10/2016,C&YPS-Non Delegated,TRAINLINE.COM LTD,02/10/2016,22.74,Public Transport -  Staff - General,Passenger Railways,GPC
Statement 19/09/2016 - 17/10/2016,C&YPS-Non Delegated,TRAVELODGE WEBSITE,20/09/2016,168,Subsistence - General,Travelodge,GPC
Statement 19/09/2016 - 17/10/2016,C&YPS-Non Delegated,TVLICENSING.CO.UK,13/10/2016,145.5,Other Transfer Payments - Leaving Care Grants,"Management, Consulting and Public Relations Servic",GPC
Statement 19/09/2016 - 17/10/2016,C&YPS-Non Delegated,TVLICENSING.CO.UK,22/09/2016,145.5,Schools Agency staff - Teaching Staff,"Management, Consulting and Public Relations Servic",GPC
Statement 19/09/2016 - 17/10/2016,C&YPS-Non Delegated,TVLICENSING.CO.UK,04/10/2016,145.5,Schools Agency staff - Teaching Staff,"Management, Consulting and Public Relations Servic",GPC
Statement 19/09/2016 - 17/10/2016,C&YPS-Non Delegated,TWO STEEPLES,05/10/2016,55.89,Subsistence - General,"Drinking Places (Alcoholic Beverages)-Bars, Tavern",GPC
Statement 19/09/2016 - 17/10/2016,C&YPS-Non Delegated,UPT-EAST MIDLANDS TRN-LB,20/09/2016,12,Schools Agency staff - Teaching Staff,Professional Services-Not Elsewhere Classified,GPC
Statement 19/09/2016 - 17/10/2016,C&YPS-Non Delegated,WAITROSE 728,03/10/2016,3,Provisions - General,"Grocery Stores, Supermarkets",GPC
Statement 19/09/2016 - 17/10/2016,C&YPS-Non Delegated,WAITROSE 728,10/10/2016,5.04,Provisions - General,"Grocery Stores, Supermarkets",GPC
Statement 19/09/2016 - 17/10/2016,C&YPS-Non Delegated,WELCOME BREAK,11/10/2016,454.65,Other Transfer Payments - Sector 17- Other,"Lodging-Hotels, Motels, Resorts",GPC
Statement 19/09/2016 - 17/10/2016,C&YPS-Non Delegated,WESTMINSTER FORUM,22/09/2016,-168,Training Expenses - General,"Management, Consulting and Public Relations Servic",GPC
Statement 19/09/2016 - 17/10/2016,C&YPS-Non Delegated,WH SMITH,28/09/2016,9.74,Other Equipment & Materials - General,News Dealers and Newsstands,GPC
Statement 19/09/2016 - 17/10/2016,C&YPS-Non Delegated,WHITE SWAN HOTEL,06/10/2016,64,Grants - General,"Lodging-Hotels, Motels, Resorts",GPC
Statement 19/09/2016 - 17/10/2016,C&YPS-Non Delegated,WILKO RETAIL LIMIT,04/10/2016,36.55,Materials - General,Household Appliance Stores,GPC
Statement 19/09/2016 - 17/10/2016,C&YPS-Non Delegated,WILKO RETAIL LIMIT,13/10/2016,90.9,Materials - General,Household Appliance Stores,GPC
Statement 19/09/2016 - 17/10/2016,C&YPS-Non Delegated,WILKO RETAIL LIMIT,11/10/2016,9.4,Other Equipment & Materials - General,Household Appliance Stores,GPC
Statement 19/09/2016 - 17/10/2016,C&YPS-Non Delegated,WILKO RETAIL LIMIT,26/09/2016,21.3,Provisions - General,Household Appliance Stores,GPC
Statement 19/09/2016 - 17/10/2016,C&YPS-Non Delegated,WM MORRISON 054,19/09/2016,35.63,Other Equipment & Materials - General,"Grocery Stores, Supermarkets",GPC
Statement 19/09/2016 - 17/10/2016,C&YPS-Non Delegated,WWW.ADASS.ORG.UK,07/10/2016,540,Training Expenses - General,Charitable and Social Service Organizations,GPC
Statement 19/09/2016 - 17/10/2016,C&YPS-Non Delegated,WWW.ALLPAY E-COM/APP,22/09/2016,94.35,Other Services - General,Charitable and Social Service Organizations,GPC
Statement 19/09/2016 - 17/10/2016,C&YPS-Non Delegated,WWW.ANNARBOR.CO.UK,23/09/2016,41.33,General Equipment - General,Catalog Merchants,GPC
Statement 19/09/2016 - 17/10/2016,C&YPS-Non Delegated,WWW.ASOS.COM,19/09/2016,32.5,Personal Needs of Clients - General,Family Clothing Stores,GPC
Statement 19/09/2016 - 17/10/2016,C&YPS-Non Delegated,WWW.ASOS.COM,13/10/2016,69.99,Personal Needs of Clients - General,Family Clothing Stores,GPC
Statement 19/09/2016 - 17/10/2016,C&YPS-Non Delegated,WWW.CITIZENCARD.COM,30/09/2016,30,Other Expenditure - General,Government Services-Not Elsewhere Classified,GPC
Statement 19/09/2016 - 17/10/2016,C&YPS-Non Delegated,WWW.ELLISONS.CO.UK,06/10/2016,281.29,Materials - General,Cosmetic Stores,GPC
Statement 19/09/2016 - 17/10/2016,C&YPS-Non Delegated,WWW.HIGHSPEEDTRAINING.,04/10/2016,15,Other Equipment & Materials - General,Business and Secretarial Schools,GPC
Statement 19/09/2016 - 17/10/2016,C&YPS-Non Delegated,WWW.LEARNINGSPACEUK.CO,11/10/2016,114.15,Other Equipment & Materials - General,"Hobby, Toy, and Game Shops",GPC
Statement 19/09/2016 - 17/10/2016,C&YPS-Non Delegated,WWW.MANDMDIRECT.COM,13/10/2016,74.47,Personal Needs of Clients - General,Sporting Goods Stores,GPC
Statement 19/09/2016 - 17/10/2016,C&YPS-Non Delegated,WWW.MILKANDMORE.CO.UK,22/09/2016,7.8,Provisions - General,Continuity/Subscription Merchants,GPC
Statement 19/09/2016 - 17/10/2016,C&YPS-Non Delegated,WWW.MILKANDMORE.CO.UK,03/10/2016,9.4,Provisions - General,Continuity/Subscription Merchants,GPC
Statement 19/09/2016 - 17/10/2016,C&YPS-Non Delegated,WWW.MILKANDMORE.CO.UK,03/10/2016,14.04,Provisions - General,Continuity/Subscription Merchants,GPC
Statement 19/09/2016 - 17/10/2016,C&YPS-Non Delegated,WWW.MILKANDMORE.CO.UK,03/10/2016,4.68,Provisions - General,Continuity/Subscription Merchants,GPC
Statement 19/09/2016 - 17/10/2016,C&YPS-Non Delegated,WWW.POSTURITE.CO.UK,11/10/2016,37.95,General Equipment - General,Commercial Furniture,GPC
Statement 19/09/2016 - 17/10/2016,C&YPS-Non Delegated,WWW.POSTURITE.CO.UK,21/09/2016,76.74,Other Expenditure - General,Commercial Furniture,GPC
Statement 19/09/2016 - 17/10/2016,C&YPS-Non Delegated,WWW.THEGLOWCOMPANY.CO.UK,11/10/2016,84.94,Other Equipment & Materials - General,"Gift, Card, Novelty, and Souvenir Shops",GPC
Statement 19/09/2016 - 17/10/2016,C&YPS-Non Delegated,WWW.TWYCROSSZOO.ORG,28/09/2016,44.79,Other Transfer Payments - Section 23 Grants,Tourist Attractions and Exhibits,GPC
Statement 19/09/2016 - 17/10/2016,C&YPS-Non Delegated,YANS RESTAURANT LTD,03/10/2016,57.2,Grants - General,"Eating Places, Restaurants",GPC
Statement 19/09/2016 - 17/10/2016,C&YPS-Schools,ALDI,19/09/2016,29.78,Materials - General,"Grocery Stores, Supermarkets",GPC
Statement 19/09/2016 - 17/10/2016,C&YPS-Schools,ALDI,23/09/2016,30.45,Materials - General,"Grocery Stores, Supermarkets",GPC
Statement 19/09/2016 - 17/10/2016,C&YPS-Schools,ALDI,30/09/2016,30.52,Materials - General,"Grocery Stores, Supermarkets",GPC
Statement 19/09/2016 - 17/10/2016,C&YPS-Schools,ALDI,07/10/2016,31.7,Materials - General,"Grocery Stores, Supermarkets",GPC
Statement 19/09/2016 - 17/10/2016,C&YPS-Schools,ALDI,11/10/2016,10.65,Materials - General,"Grocery Stores, Supermarkets",GPC
Statement 19/09/2016 - 17/10/2016,C&YPS-Schools,Amazon UK Marketplace,01/10/2016,3.69,Books - General,Book Stores,GPC
Statement 19/09/2016 - 17/10/2016,C&YPS-Schools,Amazon UK Marketplace,21/09/2016,29,Materials - General,Miscellaneous and Specialty Retail Stores,GPC
Statement 19/09/2016 - 17/10/2016,C&YPS-Schools,Amazon UK Marketplace,04/10/2016,4.96,Materials - General,Miscellaneous and Specialty Retail Stores,GPC
Statement 19/09/2016 - 17/10/2016,C&YPS-Schools,ARGOS LTD,13/10/2016,10,Materials - General,Discount Stores,GPC
Statement 19/09/2016 - 17/10/2016,C&YPS-Schools,ESPO,23/09/2016,18.41,Other Expenditure - General,Government Services-Not Elsewhere Classified,GPC
Statement 19/09/2016 - 17/10/2016,C&YPS-Schools,ESPO,01/10/2016,16.68,Other Expenditure - General,Government Services-Not Elsewhere Classified,GPC
Statement 19/09/2016 - 17/10/2016,C&YPS-Schools,ESPO,06/10/2016,135,Other Expenditure - General,Government Services-Not Elsewhere Classified,GPC
Statement 19/09/2016 - 17/10/2016,C&YPS-Schools,SKR AbeBooks.uk 3RHNRL,22/09/2016,2.92,Books - General,Book Stores,GPC
Statement 19/09/2016 - 17/10/2016,C&YPS-Schools,TESCO STORE 2846,13/10/2016,20,Materials - General,"Grocery Stores, Supermarkets",GPC
Statement 19/09/2016 - 17/10/2016,C&YPS-Schools,TESCO STORES 5182,05/10/2016,5.67,Materials - General,"Grocery Stores, Supermarkets",GPC
Statement 19/09/2016 - 17/10/2016,C&YPS-Schools,TESCO STORES 5182,13/10/2016,20.95,Materials - General,"Grocery Stores, Supermarkets",GPC
Statement 19/09/2016 - 17/10/2016,C&YPS-Schools,WILKO RETAIL LIMIT,30/09/2016,5,Materials - General,Household Appliance Stores,GPC
Statement 19/09/2016 - 17/10/2016,C&YPS-Schools,WP-CLICKTEACHING,11/10/2016,96,Schools Agency staff - Teaching Staff,Information Retrieval Services,GPC
Statement 19/09/2016 - 17/10/2016,C&YPS-Schools,WWW.BUYSPARES.CO.UK,27/09/2016,53.35,R & M of Buildings - General,Electrical Parts and Equipment,GPC
Statement 19/09/2016 - 17/10/2016,C&YPS-Schools,WWW.BUYSPARES.CO.UK,03/10/2016,39.36,R & M of Buildings - General,Electrical Parts and Equipment,GPC
Statement 19/09/2016 - 17/10/2016,C&YPS-Schools,WWW.SCHOOLSTICKERS.CO.,27/09/2016,29.4,Printing - General,Miscellaneous Publishing and  Printing,GPC
Statement 19/09/2016 - 17/10/2016,Chief Executive,650431,10/10/2016,6,Casual/Essential - General,Automobile Parking Lots and Garages,GPC
Statement 19/09/2016 - 17/10/2016,Chief Executive,Amazon Prime,26/09/2016,7.99,Other Expenditure - General,Continuity/Subscription Merchants,GPC
Statement 19/09/2016 - 17/10/2016,Chief Executive,Amazon Prime,26/09/2016,-7.99,Other Expenditure - General,Continuity/Subscription Merchants,GPC
Statement 19/09/2016 - 17/10/2016,Chief Executive,Amazon Svcs Europe SAR,10/10/2016,21.99,Books - General,Book Stores,GPC
Statement 19/09/2016 - 17/10/2016,Chief Executive,Amazon UK Marketplace,29/09/2016,22.08,IT Equipment - General,Miscellaneous and Specialty Retail Stores,GPC
Statement 19/09/2016 - 17/10/2016,Chief Executive,Amazon UK Marketplace,06/10/2016,4.15,IT Equipment - General,Book Stores,GPC
Statement 19/09/2016 - 17/10/2016,Chief Executive,Amazon UK Marketplace,29/09/2016,256.35,Materials - General,Miscellaneous and Specialty Retail Stores,GPC
Statement 19/09/2016 - 17/10/2016,Chief Executive,Amazon UK Marketplace,10/10/2016,76.79,Materials - General,Miscellaneous and Specialty Retail Stores,GPC
Statement 19/09/2016 - 17/10/2016,Chief Executive,Amazon UK Marketplace,10/10/2016,40.72,Materials - General,Miscellaneous and Specialty Retail Stores,GPC
Statement 19/09/2016 - 17/10/2016,Chief Executive,Amazon UK Marketplace,14/10/2016,2.98,Materials - General,Miscellaneous and Specialty Retail Stores,GPC
Statement 19/09/2016 - 17/10/2016,Chief Executive,Amazon UK Marketplace,04/10/2016,13.12,Operational Equipment - General,Miscellaneous and Specialty Retail Stores,GPC
Statement 19/09/2016 - 17/10/2016,Chief Executive,Amazon UK Marketplace,14/10/2016,167.86,Operational Equipment - General,Miscellaneous and Specialty Retail Stores,GPC
Statement 19/09/2016 - 17/10/2016,Chief Executive,Amazon UK Marketplace,27/09/2016,29.74,Other Expenditure - General,Miscellaneous and Specialty Retail Stores,GPC
Statement 19/09/2016 - 17/10/2016,Chief Executive,Amazon UK Marketplace,12/10/2016,24.15,Printing - Reprographic,Book Stores,GPC
Statement 19/09/2016 - 17/10/2016,Chief Executive,Amazon UK Marketplace,20/09/2016,8.99,Stationery - General,Miscellaneous and Specialty Retail Stores,GPC
Statement 19/09/2016 - 17/10/2016,Chief Executive,AMAZON UK RETAIL AMAZON.C,14/10/2016,19.98,Books - General,Miscellaneous and Specialty Retail Stores,GPC
Statement 19/09/2016 - 17/10/2016,Chief Executive,ARGOS LTD,28/09/2016,40.06,Materials - General,Discount Stores,GPC
Statement 19/09/2016 - 17/10/2016,Chief Executive,CARTRIDGE SAVE,26/09/2016,417.97,Stationery - General,"Stationary, Office Supplies, Printing and Writing",GPC
Statement 19/09/2016 - 17/10/2016,Chief Executive,CENTRAL ENG COOP,14/10/2016,3.3,Other Expenditure - General,Department Stores,GPC
Statement 19/09/2016 - 17/10/2016,Chief Executive,FOREIGN EXCHANGE FEE,27/09/2016,2.45,IT Equipment - General,Misc-Unknown,GPC
Statement 19/09/2016 - 17/10/2016,Chief Executive,GALLEONHOTELS.COM,01/10/2016,113.58,Other Expenditure - General,"Lodging-Hotels, Motels, Resorts",GPC
Statement 19/09/2016 - 17/10/2016,Chief Executive,GOTOCITRIX.COM,08/10/2016,34.8,IT Equipment - Licences,Continuity/Subscription Merchants,GPC
Statement 19/09/2016 - 17/10/2016,Chief Executive,HOTEL Hotelsone com,26/09/2016,112.51,Casual/Essential - General,Travel Agencies,GPC
Statement 19/09/2016 - 17/10/2016,Chief Executive,MORGANS LOCKSMITHS,27/09/2016,19.39,Operational Equipment - General,"Shoe Repair Shops, Shoe Shine Parlors, Hat Cleanin",GPC
Statement 19/09/2016 - 17/10/2016,Chief Executive,NCP LIMITED,03/10/2016,10,Casual/Essential - General,Automobile Parking Lots and Garages,GPC
Statement 19/09/2016 - 17/10/2016,Chief Executive,NEXXIA AUDIO SOLUTIONS,14/10/2016,8.94,Hospitality - General,"Automotive Parts, Accessories Stores",GPC
Statement 19/09/2016 - 17/10/2016,Chief Executive,PAYPAL  TAMPER EVID,22/09/2016,208,Other Expenditure - General,Professional Services-Not Elsewhere Classified,GPC
Statement 19/09/2016 - 17/10/2016,Chief Executive,POLIMIL LTD,13/10/2016,169.92,Other Expenditure - General,Miscellaneous and Specialty Retail Stores,GPC
Statement 19/09/2016 - 17/10/2016,Chief Executive,ROYAL MAIL,26/09/2016,119,Postal Services - General,Postage Stamps,GPC
Statement 19/09/2016 - 17/10/2016,Chief Executive,ROYAL MAIL,29/09/2016,110,Postal Services - General,Postage Stamps,GPC
Statement 19/09/2016 - 17/10/2016,Chief Executive,ROYAL MAIL,12/10/2016,238,Postal Services - General,Postage Stamps,GPC
Statement 19/09/2016 - 17/10/2016,Chief Executive,SCREWFIX DIRECT,28/09/2016,124.98,General Equipment - General,"Building Materials, Lumber Stores",GPC
Statement 19/09/2016 - 17/10/2016,Chief Executive,TESCO STORES 5495,06/10/2016,3.56,Materials - General,"Grocery Stores, Supermarkets",GPC
Statement 19/09/2016 - 17/10/2016,Chief Executive,Weebly,26/09/2016,89.22,IT Equipment - General,#N/A,GPC
Statement 19/09/2016 - 17/10/2016,Chief Executive,WWW.FANEVALLEY.COM,13/10/2016,82.99,Other Expenditure - General,Hardware Stores,GPC
Statement 19/09/2016 - 17/10/2016,Chief Executive,WWW.HENMORES.CO.UK,14/10/2016,50,Other Expenditure - General,Women's Ready to Wear Shoes,GPC
Statement 19/09/2016 - 17/10/2016,Chief Executive,WWW.NEOPOST.CO.UK,11/10/2016,510,Other Expenditure - General,"Stationary, Office Supplies, Printing and Writing",GPC
Statement 19/09/2016 - 17/10/2016,Corporate Resources,Amazon Svcs Europe SAR,30/09/2016,31.48,Books - General,Book Stores,GPC
Statement 19/09/2016 - 17/10/2016,Corporate Resources,Amazon UK Marketplace,30/09/2016,5.96,Books - General,Book Stores,GPC
Statement 19/09/2016 - 17/10/2016,Corporate Resources,Amazon UK Marketplace,30/09/2016,1.99,Books - General,Book Stores,GPC
Statement 19/09/2016 - 17/10/2016,Corporate Resources,Amazon UK Marketplace,14/10/2016,17.41,Catering Equipment - General,Miscellaneous and Specialty Retail Stores,GPC
Statement 19/09/2016 - 17/10/2016,Corporate Resources,Amazon UK Marketplace,23/09/2016,43.6,IT Equipment - General,Book Stores,GPC
Statement 19/09/2016 - 17/10/2016,Corporate Resources,Amazon UK Marketplace,23/09/2016,80.99,IT Equipment - Purchase - Hardware,Miscellaneous and Specialty Retail Stores,GPC
Statement 19/09/2016 - 17/10/2016,Corporate Resources,Amazon UK Marketplace,29/09/2016,39.2,Materials - General,Miscellaneous and Specialty Retail Stores,GPC
Statement 19/09/2016 - 17/10/2016,Corporate Resources,Amazon UK Marketplace,30/09/2016,47.9,Materials - General,Miscellaneous and Specialty Retail Stores,GPC
Statement 19/09/2016 - 17/10/2016,Corporate Resources,Amazon UK Marketplace,30/09/2016,5.49,Materials - General,Miscellaneous and Specialty Retail Stores,GPC
Statement 19/09/2016 - 17/10/2016,Corporate Resources,Amazon UK Marketplace,05/10/2016,16.95,Materials - General,Miscellaneous and Specialty Retail Stores,GPC
Statement 19/09/2016 - 17/10/2016,Corporate Resources,Amazon UK Marketplace,10/10/2016,10.98,Materials - General,Miscellaneous and Specialty Retail Stores,GPC
Statement 19/09/2016 - 17/10/2016,Corporate Resources,Amazon UK Marketplace,28/09/2016,23.31,Other Expenditure - General,Book Stores,GPC
Statement 19/09/2016 - 17/10/2016,Corporate Resources,Amazon UK Marketplace,04/10/2016,3.88,Other Expenditure - General,Miscellaneous and Specialty Retail Stores,GPC
Statement 19/09/2016 - 17/10/2016,Corporate Resources,Amazon UK Marketplace,22/09/2016,24.88,Stationery - General,Book Stores,GPC
Statement 19/09/2016 - 17/10/2016,Corporate Resources,Amazon UK Marketplace,28/09/2016,12.25,Stationery - General,Miscellaneous and Specialty Retail Stores,GPC
Statement 19/09/2016 - 17/10/2016,Corporate Resources,Amazon UK Marketplace,28/09/2016,5.22,Stationery - General,Miscellaneous and Specialty Retail Stores,GPC
Statement 19/09/2016 - 17/10/2016,Corporate Resources,Amazon UK Marketplace,29/09/2016,29.7,Stationery - General,Book Stores,GPC
Statement 19/09/2016 - 17/10/2016,Corporate Resources,Amazon UK Marketplace,29/09/2016,23.98,Stationery - General,Miscellaneous and Specialty Retail Stores,GPC
Statement 19/09/2016 - 17/10/2016,Corporate Resources,Amazon UK Marketplace,29/09/2016,23.97,Stationery - General,Miscellaneous and Specialty Retail Stores,GPC
Statement 19/09/2016 - 17/10/2016,Corporate Resources,Amazon UK Marketplace,03/10/2016,-23.98,Stationery - General,Miscellaneous and Specialty Retail Stores,GPC
Statement 19/09/2016 - 17/10/2016,Corporate Resources,Amazon UK Marketplace,03/10/2016,-23.97,Stationery - General,Miscellaneous and Specialty Retail Stores,GPC
Statement 19/09/2016 - 17/10/2016,Corporate Resources,Amazon UK Marketplace,10/10/2016,24.03,Stationery - General,Miscellaneous and Specialty Retail Stores,GPC
Statement 19/09/2016 - 17/10/2016,Corporate Resources,Amazon UK Marketplace,13/10/2016,11.94,Training Expenses - General,Book Stores,GPC
Statement 19/09/2016 - 17/10/2016,Corporate Resources,Amazon UK Marketplace,15/10/2016,-11.94,Training Expenses - General,Miscellaneous and Specialty Retail Stores,GPC
Statement 19/09/2016 - 17/10/2016,Corporate Resources,Amazon UK Retail,22/09/2016,16.69,Other Expenditure - General,Direct Marketers - Other,GPC
Statement 19/09/2016 - 17/10/2016,Corporate Resources,Amazon UK Retail,23/09/2016,28.89,Other Expenditure - General,Direct Marketers - Other,GPC
Statement 19/09/2016 - 17/10/2016,Corporate Resources,Amazon UK Retail,11/10/2016,27.76,Other Expenditure - General,Direct Marketers - Other,GPC
Statement 19/09/2016 - 17/10/2016,Corporate Resources,Amazon UK Retail,28/09/2016,99.53,Stationery - General,Direct Marketers - Other,GPC
Statement 19/09/2016 - 17/10/2016,Corporate Resources,AMAZON UK RETAIL AMAZON.C,30/09/2016,17.73,Materials - General,Miscellaneous and Specialty Retail Stores,GPC
Statement 19/09/2016 - 17/10/2016,Corporate Resources,AMAZON UK RETAIL AMAZON.C,08/10/2016,45.83,Telephones - Mobile Phones,Miscellaneous and Specialty Retail Stores,GPC
Statement 19/09/2016 - 17/10/2016,Corporate Resources,AMAZON UK RETAIL AMAZON.C,12/10/2016,12.28,Training Expenses - General,Miscellaneous and Specialty Retail Stores,GPC
Statement 19/09/2016 - 17/10/2016,Corporate Resources,APCOA EYRE STREET,13/10/2016,6.5,Subsistence - General,Automobile Parking Lots and Garages,GPC
Statement 19/09/2016 - 17/10/2016,Corporate Resources,ARGOS LTD,01/10/2016,29.99,Stationery - General,Discount Stores,GPC
Statement 19/09/2016 - 17/10/2016,Corporate Resources,ARGOS RETAIL GROUP,10/10/2016,63.94,Catering Equipment - General,Discount Stores,GPC
Statement 19/09/2016 - 17/10/2016,Corporate Resources,ASDA STORE  4514,27/09/2016,8.7,Other Services - General,"Grocery Stores, Supermarkets",GPC
Statement 19/09/2016 - 17/10/2016,Corporate Resources,ASDA STORES 4477,28/09/2016,3.35,Other Expenditure - General,"Grocery Stores, Supermarkets",GPC
Statement 19/09/2016 - 17/10/2016,Corporate Resources,ASDA STORES 4477,28/09/2016,8.25,Other Expenditure - General,"Grocery Stores, Supermarkets",GPC
Statement 19/09/2016 - 17/10/2016,Corporate Resources,ASDA STORES 4477,03/10/2016,1.26,Other Expenditure - General,"Grocery Stores, Supermarkets",GPC
Statement 19/09/2016 - 17/10/2016,Corporate Resources,ASDA STORES 4477,06/10/2016,6.95,Other Expenditure - General,"Grocery Stores, Supermarkets",GPC
Statement 19/09/2016 - 17/10/2016,Corporate Resources,ASDA STORES 4477,11/10/2016,8.35,Other Expenditure - General,"Grocery Stores, Supermarkets",GPC
Statement 19/09/2016 - 17/10/2016,Corporate Resources,ASDA STORES 4477,14/10/2016,5.35,Other Expenditure - General,"Grocery Stores, Supermarkets",GPC
Statement 19/09/2016 - 17/10/2016,Corporate Resources,ASDA SUPERSTORE,15/10/2016,14,Materials - General,"Grocery Stores, Supermarkets",GPC
Statement 19/09/2016 - 17/10/2016,Corporate Resources,B & Q 1052,22/09/2016,67.85,Operational Equipment - General,"Building Materials, Lumber Stores",GPC
Statement 19/09/2016 - 17/10/2016,Corporate Resources,B & Q 1052,30/09/2016,15.23,Other Expenditure - General,"Building Materials, Lumber Stores",GPC
Statement 19/09/2016 - 17/10/2016,Corporate Resources,B & Q 1052,25/09/2016,35.28,Other Services - General,"Building Materials, Lumber Stores",GPC
Statement 19/09/2016 - 17/10/2016,Corporate Resources,B & Q 1052,07/10/2016,16.64,Other Services - General,"Building Materials, Lumber Stores",GPC
Statement 19/09/2016 - 17/10/2016,Corporate Resources,BASC MEMBERSHIP,30/09/2016,52,Other Services - General,"Membership Clubs (Sports, Recreation, Athletic), C",GPC
Statement 19/09/2016 - 17/10/2016,Corporate Resources,BATH BAKERY LTD,20/09/2016,5.35,Subsistence - General,Bakeries,GPC
Statement 19/09/2016 - 17/10/2016,Corporate Resources,BLABY DISTRICT COUNCIL,26/09/2016,452.55,Other Expenditure - Recoverable Exp./Stolen Money,Government Services-Not Elsewhere Classified,GPC
Statement 19/09/2016 - 17/10/2016,Corporate Resources,BLABY DISTRICT COUNCIL,26/09/2016,840.44,Other Expenditure - Recoverable Exp./Stolen Money,Government Services-Not Elsewhere Classified,GPC
Statement 19/09/2016 - 17/10/2016,Corporate Resources,BLABY DISTRICT COUNCIL,27/09/2016,97.58,R & M of Buildings - General,Government Services-Not Elsewhere Classified,GPC
Statement 19/09/2016 - 17/10/2016,Corporate Resources,BLORENGE GUEST HOUSE,23/09/2016,273.33,Training Expenses - General,"Lodging-Hotels, Motels, Resorts",GPC
Statement 19/09/2016 - 17/10/2016,Corporate Resources,BRITISH LIBRARY,28/09/2016,5.5,Subsistence - General,"Eating Places, Restaurants",GPC
Statement 19/09/2016 - 17/10/2016,Corporate Resources,BRITISH LIBRARY,28/09/2016,8.9,Subsistence - General,"Eating Places, Restaurants",GPC
Statement 19/09/2016 - 17/10/2016,Corporate Resources,BUS TICKET OR EMT WIFI,30/09/2016,15,Public Transport -  Staff - General,"Bus Lines, Charters, Tour Buses",GPC
Statement 19/09/2016 - 17/10/2016,Corporate Resources,CAFE RITAZZA,13/10/2016,2.8,Subsistence - General,Fast-Food Restaurants (Quick Payment Service Pilot,GPC
Statement 19/09/2016 - 17/10/2016,Corporate Resources,CAFE RITAZZA,13/10/2016,3.05,Subsistence - General,Fast-Food Restaurants (Quick Payment Service Pilot,GPC
Statement 19/09/2016 - 17/10/2016,Corporate Resources,CAFFE NERO 87 PADDINGTON,19/09/2016,6,Subsistence - General,Fast-Food Restaurants (Quick Payment Service Pilot,GPC
Statement 19/09/2016 - 17/10/2016,Corporate Resources,CARD FACTORY,01/10/2016,20.86,Materials - General,"Gift, Card, Novelty, and Souvenir Shops",GPC
Statement 19/09/2016 - 17/10/2016,Corporate Resources,CARD FACTORY,01/10/2016,8.94,Materials - General,"Gift, Card, Novelty, and Souvenir Shops",GPC
Statement 19/09/2016 - 17/10/2016,Corporate Resources,CARD FACTORY,13/10/2016,3.66,Subsistence - General,"Gift, Card, Novelty, and Souvenir Shops",GPC
Statement 19/09/2016 - 17/10/2016,Corporate Resources,CARTRIDGE DISCOUNT,20/09/2016,9.99,IT Equipment - Software,"Computers, Computer Peripheral Equipment, Software",GPC
Statement 19/09/2016 - 17/10/2016,Corporate Resources,CHECKER CARS SOUTHAMPT,03/10/2016,20.5,Casual/Essential - General,Taxicabs and Limousines,GPC
Statement 19/09/2016 - 17/10/2016,Corporate Resources,CHILTERN SEEDS,23/09/2016,32.16,Other Expenditure - General,"Lawn and Garden Supply Stores, Nurseries",GPC
Statement 19/09/2016 - 17/10/2016,Corporate Resources,CMT (UK) LTD - GLASGOW,25/09/2016,26.4,Public Transport -  Staff - General,Taxicabs and Limousines,GPC
Statement 19/09/2016 - 17/10/2016,Corporate Resources,CMT (UK) LTD - GLASGOW,26/09/2016,5.88,Public Transport -  Staff - General,Taxicabs and Limousines,GPC
Statement 19/09/2016 - 17/10/2016,Corporate Resources,COBBLERS CORNER,26/09/2016,32.5,Other Expenditure - General,"Shoe Repair Shops, Shoe Shine Parlors, Hat Cleanin",GPC
Statement 19/09/2016 - 17/10/2016,Corporate Resources,COBBLERS CORNER,21/09/2016,15.5,Other Services - General,"Shoe Repair Shops, Shoe Shine Parlors, Hat Cleanin",GPC
Statement 19/09/2016 - 17/10/2016,Corporate Resources,COOKS FARM SHOP,14/10/2016,8.7,Other Expenditure - Public Enquiry fees,"Lawn and Garden Supply Stores, Nurseries",GPC
Statement 19/09/2016 - 17/10/2016,Corporate Resources,CO-OP GROUP 070412,19/09/2016,15.36,Materials - General,"Grocery Stores, Supermarkets",GPC
Statement 19/09/2016 - 17/10/2016,Corporate Resources,CO-OP GROUP 070412,19/09/2016,12.83,Other Expenditure - General,"Grocery Stores, Supermarkets",GPC
Statement 19/09/2016 - 17/10/2016,Corporate Resources,CO-OP GROUP 070412,04/10/2016,22.03,Other Expenditure - General,"Grocery Stores, Supermarkets",GPC
Statement 19/09/2016 - 17/10/2016,Corporate Resources,COSTA @ TESCO,14/10/2016,4.2,Subsistence - General,Fast-Food Restaurants (Quick Payment Service Pilot,GPC
Statement 19/09/2016 - 17/10/2016,Corporate Resources,COSTA COFFEE,20/09/2016,4.5,Subsistence - General,Fast-Food Restaurants (Quick Payment Service Pilot,GPC
Statement 19/09/2016 - 17/10/2016,Corporate Resources,CROMWELL TOOLS LTD,06/10/2016,34.98,Other Expenditure - General,Hardware Equipment and Supplies,GPC
Statement 19/09/2016 - 17/10/2016,Corporate Resources,CROSS COUNTRY,21/09/2016,321,Training Expenses - General,Passenger Railways,GPC
Statement 19/09/2016 - 17/10/2016,Corporate Resources,CROSS COUNTRY CC,22/09/2016,161,Training Expenses - General,Passenger Railways,GPC
Statement 19/09/2016 - 17/10/2016,Corporate Resources,DESTINET LTD,29/09/2016,174,Publicity/Marketing - General,Advertising Services,GPC
Statement 19/09/2016 - 17/10/2016,Corporate Resources,DISCLOSURE SCOT,10/10/2016,25,Other Expenditure - General,Government Services-Not Elsewhere Classified,GPC
Statement 19/09/2016 - 17/10/2016,Corporate Resources,DISCLOSURE SCOT,10/10/2016,25,Other Expenditure - General,Government Services-Not Elsewhere Classified,GPC
Statement 19/09/2016 - 17/10/2016,Corporate Resources,DISCLOSURE SCOT,11/10/2016,25,Other Expenditure - General,Government Services-Not Elsewhere Classified,GPC
Statement 19/09/2016 - 17/10/2016,Corporate Resources,E COAST MAIN LN CO LTD,23/09/2016,27,Public Transport -  Staff - General,Automobile Parking Lots and Garages,GPC
Statement 19/09/2016 - 17/10/2016,Corporate Resources,E COAST MAIN LN CO LTD,14/10/2016,27,Public Transport -  Staff - General,Automobile Parking Lots and Garages,GPC
Statement 19/09/2016 - 17/10/2016,Corporate Resources,EAST MIDLAND TRAINS,27/09/2016,7.5,Public Transport -  Staff - General,Automobile Parking Lots and Garages,GPC
Statement 19/09/2016 - 17/10/2016,Corporate Resources,EAST MIDLANDS LEICESTER,27/09/2016,28,Public Transport -  Staff - General,Automobile Parking Lots and Garages,GPC
Statement 19/09/2016 - 17/10/2016,Corporate Resources,EAST MIDLANDS LEICESTER,04/10/2016,28,Public Transport -  Staff - General,Automobile Parking Lots and Garages,GPC
Statement 19/09/2016 - 17/10/2016,Corporate Resources,EAST MIDLANDS LEICESTER,04/10/2016,28,Public Transport -  Staff - General,Automobile Parking Lots and Garages,GPC
Statement 19/09/2016 - 17/10/2016,Corporate Resources,EAST MIDLANDS LEICESTER,11/10/2016,28,Public Transport -  Staff - General,Automobile Parking Lots and Garages,GPC
Statement 19/09/2016 - 17/10/2016,Corporate Resources,EAST MIDLANDS LEICESTER,14/10/2016,28,Public Transport -  Staff - General,Automobile Parking Lots and Garages,GPC
Statement 19/09/2016 - 17/10/2016,Corporate Resources,EAST MIDLANDS LEICESTER,14/10/2016,28,Public Transport -  Staff - General,Automobile Parking Lots and Garages,GPC
Statement 19/09/2016 - 17/10/2016,Corporate Resources,EAST MIDLANDS MARKET HAR,19/09/2016,11.5,Public Transport -  Staff - General,Automobile Parking Lots and Garages,GPC
Statement 19/09/2016 - 17/10/2016,Corporate Resources,EAST MIDLANDS MARKET HAR,20/09/2016,11.5,Public Transport -  Staff - General,Automobile Parking Lots and Garages,GPC
Statement 19/09/2016 - 17/10/2016,Corporate Resources,EAST MIDLANDS MARKET HAR,23/09/2016,11.5,Public Transport -  Staff - General,Automobile Parking Lots and Garages,GPC
Statement 19/09/2016 - 17/10/2016,Corporate Resources,EAST MIDLANDS MARKET HAR,26/09/2016,11.5,Public Transport -  Staff - General,Automobile Parking Lots and Garages,GPC
Statement 19/09/2016 - 17/10/2016,Corporate Resources,EAST MIDLANDS MARKET HAR,27/09/2016,11.5,Public Transport -  Staff - General,Automobile Parking Lots and Garages,GPC
Statement 19/09/2016 - 17/10/2016,Corporate Resources,EAST MIDLANDS MARKET HAR,27/09/2016,11.5,Public Transport -  Staff - General,Automobile Parking Lots and Garages,GPC
Statement 19/09/2016 - 17/10/2016,Corporate Resources,EAST MIDLANDS MARKET HAR,27/09/2016,11.5,Public Transport -  Staff - General,Automobile Parking Lots and Garages,GPC
Statement 19/09/2016 - 17/10/2016,Corporate Resources,EAST MIDLANDS MARKET HAR,29/09/2016,11.5,Public Transport -  Staff - General,Automobile Parking Lots and Garages,GPC
Statement 19/09/2016 - 17/10/2016,Corporate Resources,EAST MIDLANDS MARKET HAR,30/09/2016,11.5,Public Transport -  Staff - General,Automobile Parking Lots and Garages,GPC
Statement 19/09/2016 - 17/10/2016,Corporate Resources,EAST MIDLANDS MARKET HAR,06/10/2016,11.5,Public Transport -  Staff - General,Automobile Parking Lots and Garages,GPC
Statement 19/09/2016 - 17/10/2016,Corporate Resources,EAST MIDLANDS MARKET HAR,07/10/2016,11.5,Public Transport -  Staff - General,Automobile Parking Lots and Garages,GPC
Statement 19/09/2016 - 17/10/2016,Corporate Resources,EAST MIDLANDS MARKET HAR,10/10/2016,13,Public Transport -  Staff - General,Automobile Parking Lots and Garages,GPC
Statement 19/09/2016 - 17/10/2016,Corporate Resources,EAST MIDLANDS MARKET HAR,11/10/2016,11.5,Public Transport -  Staff - General,Automobile Parking Lots and Garages,GPC
Statement 19/09/2016 - 17/10/2016,Corporate Resources,EAST MIDLANDS MARKET HAR,14/10/2016,23,Public Transport -  Staff - General,Automobile Parking Lots and Garages,GPC
Statement 19/09/2016 - 17/10/2016,Corporate Resources,EB  EVENING LECTURE AN,05/10/2016,89.93,Training Expenses - General,Business Services-Not Elsewhere Classified,GPC
Statement 19/09/2016 - 17/10/2016,Corporate Resources,EB  SHARED SERVICES CO,12/10/2016,128.38,Training Expenses - General,Business Services-Not Elsewhere Classified,GPC
Statement 19/09/2016 - 17/10/2016,Corporate Resources,EB  WORKSHOP ON CIFA S,26/09/2016,250,Training Expenses - General,Business Services-Not Elsewhere Classified,GPC
Statement 19/09/2016 - 17/10/2016,Corporate Resources,ECCLESHILL PREMIER,03/10/2016,15.5,Casual/Essential - General,Taxicabs and Limousines,GPC
Statement 19/09/2016 - 17/10/2016,Corporate Resources,EL PASO,13/10/2016,295,Subsistence - General,"Eating Places, Restaurants",GPC
Statement 19/09/2016 - 17/10/2016,Corporate Resources,EPT SERVICES,11/10/2016,113.53,Protective Clothing & Uniforms - General,Men's And Women's Clothing Stores,GPC
Statement 19/09/2016 - 17/10/2016,Corporate Resources,FACEBK JCHBTAS3K2,24/09/2016,40.03,Advertising - General,Advertising Services,GPC
Statement 19/09/2016 - 17/10/2016,Corporate Resources,FACEBK KFNXNA2TE2,30/09/2016,74.62,Advertising - General,Advertising Services,GPC
Statement 19/09/2016 - 17/10/2016,Corporate Resources,FACEBK L33TBA64K2,19/09/2016,20.02,Advertising - General,Advertising Services,GPC
Statement 19/09/2016 - 17/10/2016,Corporate Resources,FACEBK WJGG2BS3K2,30/09/2016,29.68,Advertising - General,Advertising Services,GPC
Statement 19/09/2016 - 17/10/2016,Corporate Resources,FOREIGN EXCHANGE FEE,26/09/2016,3.19,Publicity/Marketing - General,Misc-Unknown,GPC
Statement 19/09/2016 - 17/10/2016,Corporate Resources,FOREIGN EXCHANGE FEE,12/10/2016,1.32,Subscriptions - General,Misc-Unknown,GPC
Statement 19/09/2016 - 17/10/2016,Corporate Resources,FORK DELI,23/09/2016,1.8,Subsistence - General,Fast-Food Restaurants (Quick Payment Service Pilot,GPC
Statement 19/09/2016 - 17/10/2016,Corporate Resources,FRANKIE & BENNYS 5959,20/09/2016,36.7,Subsistence - General,"Eating Places, Restaurants",GPC
Statement 19/09/2016 - 17/10/2016,Corporate Resources,GANTTIC LLC,11/10/2016,48.18,Subscriptions - General,Miscellaneous and Specialty Retail Stores,GPC
Statement 19/09/2016 - 17/10/2016,Corporate Resources,GOURMET COFFEE BAR & K,19/09/2016,2.5,Subsistence - General,Fast-Food Restaurants (Quick Payment Service Pilot,GPC
Statement 19/09/2016 - 17/10/2016,Corporate Resources,GRAND HARBOUR HOTEL,02/10/2016,16.25,Subsistence - General,"Lodging-Hotels, Motels, Resorts",GPC
Statement 19/09/2016 - 17/10/2016,Corporate Resources,GRAND HARBOUR HOTEL,03/10/2016,36.95,Subsistence - General,"Lodging-Hotels, Motels, Resorts",GPC
Statement 19/09/2016 - 17/10/2016,Corporate Resources,GRAND HARBOUR HOTEL,04/10/2016,11.35,Subsistence - General,"Lodging-Hotels, Motels, Resorts",GPC
Statement 19/09/2016 - 17/10/2016,Corporate Resources,HALFORDS 0428,21/09/2016,7.91,Other Services - General,Bicycle Shops-Sales and Service,GPC
Statement 19/09/2016 - 17/10/2016,Corporate Resources,HALFORDS 0428,30/09/2016,16.66,Other Services - General,Bicycle Shops-Sales and Service,GPC
Statement 19/09/2016 - 17/10/2016,Corporate Resources,HARLOW BROS LTD,07/10/2016,3.55,Other Expenditure - General,"Building Materials, Lumber Stores",GPC
Statement 19/09/2016 - 17/10/2016,Corporate Resources,HARLOW BROS LTD,28/09/2016,57.46,Other Services - General,"Building Materials, Lumber Stores",GPC
Statement 19/09/2016 - 17/10/2016,Corporate Resources,HARLOW BROS LTD,29/09/2016,1.44,Other Services - General,"Building Materials, Lumber Stores",GPC
Statement 19/09/2016 - 17/10/2016,Corporate Resources,HARLOW BROS LTD,14/10/2016,40.49,Other Services - General,"Building Materials, Lumber Stores",GPC
Statement 19/09/2016 - 17/10/2016,Corporate Resources,HIGGOTTS,29/09/2016,15.79,Other Expenditure - General,Landscaping and Horticultural Services,GPC
Statement 19/09/2016 - 17/10/2016,Corporate Resources,HILTON,10/10/2016,11.5,Subsistence - General,Hilton Hotels,GPC
Statement 19/09/2016 - 17/10/2016,Corporate Resources,HIMAN & COMPANY,22/09/2016,66,R & M of Buildings - General,Business Services-Not Elsewhere Classified,GPC
Statement 19/09/2016 - 17/10/2016,Corporate Resources,HOMEBASE LTD,30/09/2016,13.29,Stationery - General,"Building Materials, Lumber Stores",GPC
Statement 19/09/2016 - 17/10/2016,Corporate Resources,HOOTSUITE MEDIA INC.,24/09/2016,115.85,Publicity/Marketing - General,Business Services-Not Elsewhere Classified,GPC
Statement 19/09/2016 - 17/10/2016,Corporate Resources,HTTP://ACE.APPRENTICES,06/10/2016,22,Training Expenses - General,"Management, Consulting and Public Relations Servic",GPC
Statement 19/09/2016 - 17/10/2016,Corporate Resources,HTTP://ACE.APPRENTICES,06/10/2016,22,Training Expenses - General,"Management, Consulting and Public Relations Servic",GPC
Statement 19/09/2016 - 17/10/2016,Corporate Resources,ISELECT CONSULTANCY,04/10/2016,199,Training Expenses - General,"Management, Consulting and Public Relations Servic",GPC
Statement 19/09/2016 - 17/10/2016,Corporate Resources,IZ  GEOFF SEYMOUR,20/09/2016,20,Subsistence - General,Taxicabs and Limousines,GPC
Statement 19/09/2016 - 17/10/2016,Corporate Resources,JAMALY DIY & HARDWARE,14/10/2016,14.99,Materials - General,Hardware Stores,GPC
Statement 19/09/2016 - 17/10/2016,Corporate Resources,JURYS INN SHEFFIEL,14/10/2016,1408.33,Subsistence - General,"Lodging-Hotels, Motels, Resorts",GPC
Statement 19/09/2016 - 17/10/2016,Corporate Resources,KINGS CROSS TIC,04/10/2016,30,Public Transport -  Staff - General,Passenger Railways,GPC
Statement 19/09/2016 - 17/10/2016,Corporate Resources,LCC CATERING SERVICES,19/09/2016,3.4,Other Expenditure - General,Government Services-Not Elsewhere Classified,GPC
Statement 19/09/2016 - 17/10/2016,Corporate Resources,LCC CATERING SERVICES,19/09/2016,5.2,Other Expenditure - General,Government Services-Not Elsewhere Classified,GPC
Statement 19/09/2016 - 17/10/2016,Corporate Resources,LCC CATERING SERVICES,20/09/2016,4.65,Other Expenditure - General,Government Services-Not Elsewhere Classified,GPC
Statement 19/09/2016 - 17/10/2016,Corporate Resources,LCC CATERING SERVICES,20/09/2016,4.7,Other Expenditure - General,Government Services-Not Elsewhere Classified,GPC
Statement 19/09/2016 - 17/10/2016,Corporate Resources,LCC CATERING SERVICES,05/10/2016,5.4,Subsistence - General,Government Services-Not Elsewhere Classified,GPC
Statement 19/09/2016 - 17/10/2016,Corporate Resources,LCC CATERING SERVICES,05/10/2016,5,Subsistence - General,Government Services-Not Elsewhere Classified,GPC
Statement 19/09/2016 - 17/10/2016,Corporate Resources,LE FEAST LTD,20/09/2016,4.25,Subsistence - General,Fast-Food Restaurants (Quick Payment Service Pilot,GPC
Statement 19/09/2016 - 17/10/2016,Corporate Resources,LE FEVRES STORES,08/10/2016,8.46,Other Expenditure - General,"Grocery Stores, Supermarkets",GPC
Statement 19/09/2016 - 17/10/2016,Corporate Resources,LIDL UK,12/10/2016,4.71,Subsistence - General,"Grocery Stores, Supermarkets",GPC
Statement 19/09/2016 - 17/10/2016,Corporate Resources,LIMPLEY STOKE HOTEL,05/10/2016,61.67,Training Expenses - General,Best Western Hotels,GPC
Statement 19/09/2016 - 17/10/2016,Corporate Resources,LINKEDIN-2987612324,15/10/2016,12.28,Advertising - General,Continuity/Subscription Merchants,GPC
Statement 19/09/2016 - 17/10/2016,Corporate Resources,LINKEDIN-340 3886483,21/09/2016,227.94,Recruitment Advertising - General,Continuity/Subscription Merchants,GPC
Statement 19/09/2016 - 17/10/2016,Corporate Resources,LINKEDIN-342 4392963,13/10/2016,227.94,Other Expenditure - General,Continuity/Subscription Merchants,GPC
Statement 19/09/2016 - 17/10/2016,Corporate Resources,LINKEDIN-342 4606713,13/10/2016,227.94,Other Expenditure - General,Continuity/Subscription Merchants,GPC
Statement 19/09/2016 - 17/10/2016,Corporate Resources,LOUGHBOROUGH SST,20/09/2016,90.5,Public Transport -  Staff - General,Passenger Railways,GPC
Statement 19/09/2016 - 17/10/2016,Corporate Resources,LUL TICKET MACHINE,19/09/2016,60,Public Transport -  Staff - General,Passenger Railways,GPC
Statement 19/09/2016 - 17/10/2016,Corporate Resources,LUL TICKET MACHINE,20/09/2016,12.1,Public Transport -  Staff - General,Passenger Railways,GPC
Statement 19/09/2016 - 17/10/2016,Corporate Resources,LUL TICKET MACHINE,20/09/2016,4.9,Public Transport -  Staff - General,Passenger Railways,GPC
Statement 19/09/2016 - 17/10/2016,Corporate Resources,LUL TICKET MACHINE,20/09/2016,10,Public Transport -  Staff - General,Passenger Railways,GPC
Statement 19/09/2016 - 17/10/2016,Corporate Resources,LUL TICKET MACHINE,20/09/2016,5,Public Transport -  Staff - General,Passenger Railways,GPC
Statement 19/09/2016 - 17/10/2016,Corporate Resources,LUL TICKET MACHINE,21/09/2016,4.9,Public Transport -  Staff - General,Passenger Railways,GPC
Statement 19/09/2016 - 17/10/2016,Corporate Resources,M C R SYSTEMS,06/10/2016,111.04,R & M of Buildings - General,Electrical Parts and Equipment,GPC
Statement 19/09/2016 - 17/10/2016,Corporate Resources,M C R SYSTEMS,06/10/2016,500,R & M of Buildings - General,Electrical Parts and Equipment,GPC
Statement 19/09/2016 - 17/10/2016,Corporate Resources,M M LEGGETT VET. SURGE,05/10/2016,82.5,Other Expenditure - Public Enquiry fees,Veterinary Services,GPC
Statement 19/09/2016 - 17/10/2016,Corporate Resources,M M LEGGETT VET. SURGE,05/10/2016,72.1,Other Expenditure - Public Enquiry fees,Veterinary Services,GPC
Statement 19/09/2016 - 17/10/2016,Corporate Resources,M&S SIMPLY FOOD - SSP,20/09/2016,9.45,Subsistence - General,"Miscellaneous Food Stores-Convenience Stores, Mark",GPC
Statement 19/09/2016 - 17/10/2016,Corporate Resources,M&S SIMPLY FOOD - SSP,20/09/2016,4.4,Subsistence - General,"Miscellaneous Food Stores-Convenience Stores, Mark",GPC
Statement 19/09/2016 - 17/10/2016,Corporate Resources,M&S SIMPLY FOOD - SSP,21/09/2016,2.85,Subsistence - General,"Miscellaneous Food Stores-Convenience Stores, Mark",GPC
Statement 19/09/2016 - 17/10/2016,Corporate Resources,M&S SIMPLY FOOD - SSP,28/09/2016,11.95,Subsistence - General,"Miscellaneous Food Stores-Convenience Stores, Mark",GPC
Statement 19/09/2016 - 17/10/2016,Corporate Resources,M&S SIMPLY FOOD - SSP,05/10/2016,11.17,Subsistence - General,"Miscellaneous Food Stores-Convenience Stores, Mark",GPC
Statement 19/09/2016 - 17/10/2016,Corporate Resources,M&S SIMPLY FOOD - SSP,10/10/2016,9.55,Subsistence - General,"Miscellaneous Food Stores-Convenience Stores, Mark",GPC
Statement 19/09/2016 - 17/10/2016,Corporate Resources,M&S SIMPLY FOOD - SSP,10/10/2016,11.87,Subsistence - General,"Miscellaneous Food Stores-Convenience Stores, Mark",GPC
Statement 19/09/2016 - 17/10/2016,Corporate Resources,MAKRO SELF SERVICE LEICES,01/10/2016,50,Materials - General,Wholesale Clubs,GPC
Statement 19/09/2016 - 17/10/2016,Corporate Resources,MAKRO SELF SERVICE LEICES,01/10/2016,69.02,Materials - General,Wholesale Clubs,GPC
Statement 19/09/2016 - 17/10/2016,Corporate Resources,MALMAISON BHAM,06/10/2016,-40.4,Subsistence - General,"Lodging-Hotels, Motels, Resorts",GPC
Statement 19/09/2016 - 17/10/2016,Corporate Resources,MALMAISON MCHESTER,09/10/2016,89,Subsistence - General,"Lodging-Hotels, Motels, Resorts",GPC
Statement 19/09/2016 - 17/10/2016,Corporate Resources,METROLINK TVM,19/09/2016,3.6,Public Transport -  Staff - General,"Bus Lines, Charters, Tour Buses",GPC
Statement 19/09/2016 - 17/10/2016,Corporate Resources,METROLINK TVM,20/09/2016,5.7,Public Transport -  Staff - General,"Bus Lines, Charters, Tour Buses",GPC
Statement 19/09/2016 - 17/10/2016,Corporate Resources,METROLINK TVM,04/10/2016,3.6,Public Transport -  Staff - General,"Bus Lines, Charters, Tour Buses",GPC
Statement 19/09/2016 - 17/10/2016,Corporate Resources,METROLINK TVM,05/10/2016,3.6,Public Transport -  Staff - General,"Bus Lines, Charters, Tour Buses",GPC
Statement 19/09/2016 - 17/10/2016,Corporate Resources,METROLINK TVM,07/10/2016,5.7,Public Transport -  Staff - General,"Bus Lines, Charters, Tour Buses",GPC
Statement 19/09/2016 - 17/10/2016,Corporate Resources,METROLINK TVM,10/10/2016,3.6,Public Transport -  Staff - General,"Bus Lines, Charters, Tour Buses",GPC
Statement 19/09/2016 - 17/10/2016,Corporate Resources,METROLINK TVM,11/10/2016,3.6,Public Transport -  Staff - General,"Bus Lines, Charters, Tour Buses",GPC
Statement 19/09/2016 - 17/10/2016,Corporate Resources,METROLINK TVM,13/10/2016,3.6,Public Transport -  Staff - General,"Bus Lines, Charters, Tour Buses",GPC
Statement 19/09/2016 - 17/10/2016,Corporate Resources,MI CASA,04/10/2016,9.64,Subsistence - General,Fast-Food Restaurants (Quick Payment Service Pilot,GPC
Statement 19/09/2016 - 17/10/2016,Corporate Resources,MICROSOFT    STORE,20/09/2016,3.09,Stationery - General,#N/A,GPC
Statement 19/09/2016 - 17/10/2016,Corporate Resources,MINDFULNESSCIC.CO.,22/09/2016,-195,Training Expenses - General,Schools and Educational Services-Not Elsewhere Cla,GPC
Statement 19/09/2016 - 17/10/2016,Corporate Resources,MUMTAZ BRADFORD LTD,09/10/2016,35.45,Subsistence - General,"Eating Places, Restaurants",GPC
Statement 19/09/2016 - 17/10/2016,Corporate Resources,NANDOS,22/09/2016,13.5,Subsistence - General,"Eating Places, Restaurants",GPC
Statement 19/09/2016 - 17/10/2016,Corporate Resources,NANDOS EUSTON,26/09/2016,10.6,Subsistence - General,"Eating Places, Restaurants",GPC
Statement 19/09/2016 - 17/10/2016,Corporate Resources,NANDOS EUSTON,26/09/2016,15.04,Subsistence - General,"Eating Places, Restaurants",GPC
Statement 19/09/2016 - 17/10/2016,Corporate Resources,NATURAL WORLD PET STOR,23/09/2016,41.99,Other Services - General,Pet Shops-Pet Food and Supplies,GPC
Statement 19/09/2016 - 17/10/2016,Corporate Resources,OXFORD BROOKES UNI,05/10/2016,225,Training Expenses - General,"Stationery, Office, and School Supply Stores",GPC
Statement 19/09/2016 - 17/10/2016,Corporate Resources,OYSTER BUS AUTOSET,03/10/2016,20,Casual/Essential - General,Passenger Railways,GPC
Statement 19/09/2016 - 17/10/2016,Corporate Resources,OYSTER RENEW WEB,28/09/2016,50,Public Transport -  Staff - General,Passenger Railways,GPC
Statement 19/09/2016 - 17/10/2016,Corporate Resources,OYSTER RENEW WEB,28/09/2016,50,Public Transport -  Staff - General,Passenger Railways,GPC
Statement 19/09/2016 - 17/10/2016,Corporate Resources,PAPERCHASE,20/09/2016,7.5,Stationery - General,"Gift, Card, Novelty, and Souvenir Shops",GPC
Statement 19/09/2016 - 17/10/2016,Corporate Resources,PARCEL YARD,10/10/2016,10.95,Subsistence - General,"Eating Places, Restaurants",GPC
Statement 19/09/2016 - 17/10/2016,Corporate Resources,PASTY SHOP,02/10/2016,6.54,Subsistence - General,Fast-Food Restaurants (Quick Payment Service Pilot,GPC
Statement 19/09/2016 - 17/10/2016,Corporate Resources,PATISSERIE VALERIE,10/10/2016,3.5,Subsistence - General,"Eating Places, Restaurants",GPC
Statement 19/09/2016 - 17/10/2016,Corporate Resources,PAYPAL  LGCOMMS,26/09/2016,450,Conference - General,"Civic, Social, and Fraternal Associations",GPC
Statement 19/09/2016 - 17/10/2016,Corporate Resources,PIZZA EXPRESS,26/09/2016,17.3,Subsistence - General,"Eating Places, Restaurants",GPC
Statement 19/09/2016 - 17/10/2016,Corporate Resources,POST OFFICE COUNTER,12/10/2016,13.67,Stationery - General,Postage Stamps,GPC
Statement 19/09/2016 - 17/10/2016,Corporate Resources,POST OFFICE SHOP,05/10/2016,21.09,IT Equipment - Purchase - Hardware,Postage Stamps,GPC
Statement 19/09/2016 - 17/10/2016,Corporate Resources,POSTOFFICE SELFSERVICE,07/10/2016,8.88,Postal Services - General,Postage Stamps,GPC
Statement 19/09/2016 - 17/10/2016,Corporate Resources,POULTON-LE-FYLDE STN T,23/09/2016,10,Public Transport -  Staff - General,Passenger Railways,GPC
Statement 19/09/2016 - 17/10/2016,Corporate Resources,POULTON-LE-FYLDE STN T,26/09/2016,51.5,Public Transport -  Staff - General,Passenger Railways,GPC
Statement 19/09/2016 - 17/10/2016,Corporate Resources,PREMIER INN 44535095,03/10/2016,139.14,Training Expenses - General,PREMIER TRAVEL,GPC
Statement 19/09/2016 - 17/10/2016,Corporate Resources,PREMIER INN 44535095,03/10/2016,139.14,Training Expenses - General,PREMIER TRAVEL,GPC
Statement 19/09/2016 - 17/10/2016,Corporate Resources,PREMIER INN 44535095,03/10/2016,89.98,Training Expenses - General,PREMIER TRAVEL,GPC
Statement 19/09/2016 - 17/10/2016,Corporate Resources,PREMIER INN 44535095,03/10/2016,49.16,Training Expenses - General,PREMIER TRAVEL,GPC
Statement 19/09/2016 - 17/10/2016,Corporate Resources,PREMIER INN 44536195,02/10/2016,371.6,Training Expenses - General,PREMIER TRAVEL,GPC
Statement 19/09/2016 - 17/10/2016,Corporate Resources,PREMIER INN 44536195,03/10/2016,72.99,Training Expenses - General,PREMIER TRAVEL,GPC
Statement 19/09/2016 - 17/10/2016,Corporate Resources,PREMIER INN44521250,30/09/2016,193.98,Subsistence - General,PREMIER TRAVEL,GPC
Statement 19/09/2016 - 17/10/2016,Corporate Resources,PREMIER INN44521250,30/09/2016,-193.98,Training Expenses - General,PREMIER TRAVEL,GPC
Statement 19/09/2016 - 17/10/2016,Corporate Resources,PREMIER INN44521260,02/10/2016,63.5,Subsistence - General,PREMIER TRAVEL,GPC
Statement 19/09/2016 - 17/10/2016,Corporate Resources,PREMIER INN44521260,06/10/2016,72.5,Subsistence - General,PREMIER TRAVEL,GPC
Statement 19/09/2016 - 17/10/2016,Corporate Resources,PREMIER INN44521260,06/10/2016,72.5,Subsistence - General,PREMIER TRAVEL,GPC
Statement 19/09/2016 - 17/10/2016,Corporate Resources,PREZZO,19/09/2016,34.06,Subsistence - General,"Eating Places, Restaurants",GPC
Statement 19/09/2016 - 17/10/2016,Corporate Resources,PUMPKIN CAFE,13/10/2016,4.98,Subsistence - General,"Package Stores, Beer, Wine, Liquor",GPC
Statement 19/09/2016 - 17/10/2016,Corporate Resources,RAIL GOURMET UK,20/09/2016,3.1,Subsistence - General,"Eating Places, Restaurants",GPC
Statement 19/09/2016 - 17/10/2016,Corporate Resources,RAIL GOURMET UK,03/10/2016,3.2,Subsistence - General,"Eating Places, Restaurants",GPC
Statement 19/09/2016 - 17/10/2016,Corporate Resources,RAIL GOURMET UK,14/10/2016,4,Subsistence - General,"Eating Places, Restaurants",GPC
Statement 19/09/2016 - 17/10/2016,Corporate Resources,RBI QSS SUBS,12/10/2016,290,Subscriptions - General,"Books, Periodicals, and Newspapers",GPC
Statement 19/09/2016 - 17/10/2016,Corporate Resources,RS COMPONENTS,05/10/2016,38.88,R & M of Buildings - General,Electrical Parts and Equipment,GPC
Statement 19/09/2016 - 17/10/2016,Corporate Resources,RYMAN,21/09/2016,31.44,Stationery - General,"Stationery, Office, and School Supply Stores",GPC
Statement 19/09/2016 - 17/10/2016,Corporate Resources,RYMAN,01/10/2016,13.31,Stationery - General,"Stationery, Office, and School Supply Stores",GPC
Statement 19/09/2016 - 17/10/2016,Corporate Resources,RYMAN 1184,10/10/2016,7.49,Stationery - General,"Stationery, Office, and School Supply Stores",GPC
Statement 19/09/2016 - 17/10/2016,Corporate Resources,SAINSBURYS S/MKTS,26/09/2016,7.45,Materials - General,"Grocery Stores, Supermarkets",GPC
Statement 19/09/2016 - 17/10/2016,Corporate Resources,SAINSBURYS S/MKTS,25/09/2016,7.2,Subsistence - General,"Grocery Stores, Supermarkets",GPC
Statement 19/09/2016 - 17/10/2016,Corporate Resources,SAINSBURYS S/MKTS,03/10/2016,14.49,Subsistence - General,"Grocery Stores, Supermarkets",GPC
Statement 19/09/2016 - 17/10/2016,Corporate Resources,SAL CAPONE,27/09/2016,14.85,Subsistence - General,"Eating Places, Restaurants",GPC
Statement 19/09/2016 - 17/10/2016,Corporate Resources,SANS SUPPLIES LTD,23/09/2016,268.8,Materials - General,Miscellaneous and Specialty Retail Stores,GPC
Statement 19/09/2016 - 17/10/2016,Corporate Resources,SCREWFIX,04/10/2016,91.66,Operational Equipment - General,"Building Materials, Lumber Stores",GPC
Statement 19/09/2016 - 17/10/2016,Corporate Resources,SCREWFIX,14/10/2016,53.71,Operational Equipment - General,"Building Materials, Lumber Stores",GPC
Statement 19/09/2016 - 17/10/2016,Corporate Resources,SCREWFIX,19/09/2016,4.99,Other Expenditure - General,"Building Materials, Lumber Stores",GPC
Statement 19/09/2016 - 17/10/2016,Corporate Resources,SCREWFIX,28/09/2016,28.68,Other Services - General,"Building Materials, Lumber Stores",GPC
Statement 19/09/2016 - 17/10/2016,Corporate Resources,SHEPSHED AUTO SPARES L,11/10/2016,38.48,Other Services - General,Motorcycle Dealers,GPC
Statement 19/09/2016 - 17/10/2016,Corporate Resources,SPORTSDIRECT 65,30/09/2016,16.99,Other Expenditure - General,Sporting Goods Stores,GPC
Statement 19/09/2016 - 17/10/2016,Corporate Resources,SPORTSDIRECT 65,01/10/2016,31.99,Protective Clothing & Uniforms - General,Sporting Goods Stores,GPC
Statement 19/09/2016 - 17/10/2016,Corporate Resources,STAPLES UK,04/10/2016,78.29,Other Services - General,"Stationery, Office, and School Supply Stores",GPC
Statement 19/09/2016 - 17/10/2016,Corporate Resources,STOP GAP,28/09/2016,7.18,Subsistence - General,"Eating Places, Restaurants",GPC
Statement 19/09/2016 - 17/10/2016,Corporate Resources,STORE FINANCIAL SERVIC,01/10/2016,20,Materials - General,Miscellaneous and Specialty Retail Stores,GPC
Statement 19/09/2016 - 17/10/2016,Corporate Resources,SurveyMonkey,23/09/2016,250,IT Equipment - Maintenance,Computer and Data Processing Services,GPC
Statement 19/09/2016 - 17/10/2016,Corporate Resources,TARPAFLEX,05/10/2016,173.25,Materials - General,Hardware Stores,GPC
Statement 19/09/2016 - 17/10/2016,Corporate Resources,TESCO STORES 2044,01/10/2016,5,Other Expenditure - General,"Grocery Stores, Supermarkets",GPC
Statement 19/09/2016 - 17/10/2016,Corporate Resources,TESCO STORES 2470,14/10/2016,6.5,Materials - General,"Grocery Stores, Supermarkets",GPC
Statement 19/09/2016 - 17/10/2016,Corporate Resources,TESCO STORES 6863,13/10/2016,5.88,Subsistence - General,"Grocery Stores, Supermarkets",GPC
Statement 19/09/2016 - 17/10/2016,Corporate Resources,TESCO STORES-2044,26/09/2016,12,Other Expenditure - General,"Grocery Stores, Supermarkets",GPC
Statement 19/09/2016 - 17/10/2016,Corporate Resources,TESCO STORES-2044,15/10/2016,8.45,Other Expenditure - General,"Grocery Stores, Supermarkets",GPC
Statement 19/09/2016 - 17/10/2016,Corporate Resources,TESCO-STORES 2846,09/10/2016,8.5,Other Expenditure - General,"Grocery Stores, Supermarkets",GPC
Statement 19/09/2016 - 17/10/2016,Corporate Resources,THE BOOK PEOPLE,12/10/2016,44.95,Books - General,Book Stores,GPC
Statement 19/09/2016 - 17/10/2016,Corporate Resources,THE FORGE INN,04/10/2016,49.5,Subsistence - General,"Eating Places, Restaurants",GPC
Statement 19/09/2016 - 17/10/2016,Corporate Resources,THE WESLEY,26/09/2016,5,Subsistence - General,"Lodging-Hotels, Motels, Resorts",GPC
Statement 19/09/2016 - 17/10/2016,Corporate Resources,THEBLACK HORSE INN,19/09/2016,85,Training Expenses - General,"Lodging-Hotels, Motels, Resorts",GPC
Statement 19/09/2016 - 17/10/2016,Corporate Resources,TP COALVILLE,22/09/2016,40,Other Expenditure - General,"Building Materials, Lumber Stores",GPC
Statement 19/09/2016 - 17/10/2016,Corporate Resources,TP COALVILLE,19/09/2016,25,R & M of Buildings - General,"Building Materials, Lumber Stores",GPC
Statement 19/09/2016 - 17/10/2016,Corporate Resources,TRAINLINE.COM LTD,10/10/2016,18.92,Public Transport -  Staff - General,Passenger Railways,GPC
Statement 19/09/2016 - 17/10/2016,Corporate Resources,TRAINLINE.COM LTD,26/09/2016,48.9,Training Expenses - General,Passenger Railways,GPC
Statement 19/09/2016 - 17/10/2016,Corporate Resources,TRAINLINE.COM LTD,10/10/2016,20,Training Expenses - General,Passenger Railways,GPC
Statement 19/09/2016 - 17/10/2016,Corporate Resources,TRAINLINE.COM LTD,14/10/2016,244.2,Training Expenses - General,Passenger Railways,GPC
Statement 19/09/2016 - 17/10/2016,Corporate Resources,TRAMLINK NOTTINGHAM LIMIT,10/10/2016,3.33,Public Transport -  Staff - General,Local and Suburban Commuter Pass Trans,GPC
Statement 19/09/2016 - 17/10/2016,Corporate Resources,TRAVELODGE WEBSITE,23/09/2016,246.69,Training Expenses - General,Travelodge,GPC
Statement 19/09/2016 - 17/10/2016,Corporate Resources,TSGN,05/10/2016,144,Public Transport -  Staff - General,Passenger Railways,GPC
Statement 19/09/2016 - 17/10/2016,Corporate Resources,TSGN,13/10/2016,89,Public Transport -  Staff - General,Passenger Railways,GPC
Statement 19/09/2016 - 17/10/2016,Corporate Resources,UBER GB SEP20 GYNQF HELP.,20/09/2016,4.85,Casual/Essential - General,Taxicabs and Limousines,GPC
Statement 19/09/2016 - 17/10/2016,Corporate Resources,UPPER CRUST,20/09/2016,8.33,Materials - General,"Package Stores, Beer, Wine, Liquor",GPC
Statement 19/09/2016 - 17/10/2016,Corporate Resources,UPPER CRUST,05/10/2016,5.59,Subsistence - General,"Package Stores, Beer, Wine, Liquor",GPC
Statement 19/09/2016 - 17/10/2016,Corporate Resources,UPT-EAST MIDLANDS TRN-LB,20/09/2016,12,Public Transport -  Staff - General,Professional Services-Not Elsewhere Classified,GPC
Statement 19/09/2016 - 17/10/2016,Corporate Resources,UPT-EAST MIDLANDS TRN-LB,23/09/2016,12,Public Transport -  Staff - General,Professional Services-Not Elsewhere Classified,GPC
Statement 19/09/2016 - 17/10/2016,Corporate Resources,UPT-EAST MIDLANDS TRN-LB,03/10/2016,12,Public Transport -  Staff - General,Professional Services-Not Elsewhere Classified,GPC
Statement 19/09/2016 - 17/10/2016,Corporate Resources,UPT-EAST MIDLANDS TRN-LB,14/10/2016,24,Public Transport -  Staff - General,Professional Services-Not Elsewhere Classified,GPC
Statement 19/09/2016 - 17/10/2016,Corporate Resources,VERDON TIMBER GROUP LI,21/09/2016,20.67,Other Services - General,"Building Materials, Lumber Stores",GPC
Statement 19/09/2016 - 17/10/2016,Corporate Resources,VERIFONE TAXI/PRIVATE,04/10/2016,7.2,Casual/Essential - General,Taxicabs and Limousines,GPC
Statement 19/09/2016 - 17/10/2016,Corporate Resources,VILLAGE HOTEL HERONS (B),22/09/2016,13.3,Subsistence - General,"Lodging-Hotels, Motels, Resorts",GPC
Statement 19/09/2016 - 17/10/2016,Corporate Resources,VILLAGE HOTEL HERONS (B),11/10/2016,9.5,Subsistence - General,"Lodging-Hotels, Motels, Resorts",GPC
Statement 19/09/2016 - 17/10/2016,Corporate Resources,VIRGINTRAINSEC WI-FI,22/09/2016,5,Public Transport -  Staff - General,Passenger Railways,GPC
Statement 19/09/2016 - 17/10/2016,Corporate Resources,VRUMI J299UF,13/10/2016,65.7,Subsistence - General,"Lodging-Hotels, Motels, Resorts",GPC
Statement 19/09/2016 - 17/10/2016,Corporate Resources,WAITROSE 619,27/09/2016,5.76,Subsistence - General,"Grocery Stores, Supermarkets",GPC
Statement 19/09/2016 - 17/10/2016,Corporate Resources,WAITROSE 636,10/10/2016,7.8,Subsistence - General,"Grocery Stores, Supermarkets",GPC
Statement 19/09/2016 - 17/10/2016,Corporate Resources,WASABI KINGS CROSS,27/09/2016,10.23,Subsistence - General,"Eating Places, Restaurants",GPC
Statement 19/09/2016 - 17/10/2016,Corporate Resources,WCPC CAMBRIDGE STAT (005,04/10/2016,6.7,Subsistence - General,"Eating Places, Restaurants",GPC
Statement 19/09/2016 - 17/10/2016,Corporate Resources,WELCOME CO-OP,02/10/2016,5.6,Subsistence - General,"Miscellaneous Food Stores-Convenience Stores, Mark",GPC
Statement 19/09/2016 - 17/10/2016,Corporate Resources,WELCOME CO-OP,03/10/2016,1.75,Subsistence - General,"Miscellaneous Food Stores-Convenience Stores, Mark",GPC
Statement 19/09/2016 - 17/10/2016,Corporate Resources,WELCOME CO-OP,03/10/2016,4.25,Subsistence - General,"Miscellaneous Food Stores-Convenience Stores, Mark",GPC
Statement 19/09/2016 - 17/10/2016,Corporate Resources,WEST COAST TRAINS,07/10/2016,106,Public Transport -  Staff - General,Passenger Railways,GPC
Statement 19/09/2016 - 17/10/2016,Corporate Resources,WEST COAST TRAINS LTD,21/09/2016,2.6,Public Transport -  Staff - General,"Candy, Nut, Confectionery Stores",GPC
Statement 19/09/2016 - 17/10/2016,Corporate Resources,WEST COAST TRAINS LTD,04/10/2016,4.1,Public Transport -  Staff - General,"Candy, Nut, Confectionery Stores",GPC
Statement 19/09/2016 - 17/10/2016,Corporate Resources,WEST COAST TRAINS LTD,10/10/2016,4.5,Public Transport -  Staff - General,"Candy, Nut, Confectionery Stores",GPC
Statement 19/09/2016 - 17/10/2016,Corporate Resources,WH SMITH,25/09/2016,8.99,Stationery - General,News Dealers and Newsstands,GPC
Statement 19/09/2016 - 17/10/2016,Corporate Resources,WICKES,27/09/2016,12.31,Other Services - General,"Building Materials, Lumber Stores",GPC
Statement 19/09/2016 - 17/10/2016,Corporate Resources,WICKES,03/10/2016,74.83,Other Services - General,"Building Materials, Lumber Stores",GPC
Statement 19/09/2016 - 17/10/2016,Corporate Resources,WILKO RETAIL LIMIT,08/10/2016,3,Materials - General,Household Appliance Stores,GPC
Statement 19/09/2016 - 17/10/2016,Corporate Resources,WM MORRISON 054,21/09/2016,17,Other Expenditure - General,"Grocery Stores, Supermarkets",GPC
Statement 19/09/2016 - 17/10/2016,Corporate Resources,WM MORRISON 054,24/09/2016,14.1,Other Expenditure - General,"Grocery Stores, Supermarkets",GPC
Statement 19/09/2016 - 17/10/2016,Corporate Resources,WM MORRISONS STORE,27/09/2016,10.05,Other Services - General,"Grocery Stores, Supermarkets",GPC
Statement 19/09/2016 - 17/10/2016,Corporate Resources,WWW.ADDISONLEE.COM,26/09/2016,9,Casual/Essential - General,Taxicabs and Limousines,GPC
Statement 19/09/2016 - 17/10/2016,Corporate Resources,WWW.BAKERROSS.CO.UK,13/10/2016,69.95,Materials - General,"Artist Supply Stores, Craft Shops",GPC
Statement 19/09/2016 - 17/10/2016,Corporate Resources,WWW.CIPFA.ORG.UK/PFMCO,28/09/2016,155,Training Expenses - General,Membership Organizations-Not Elsewhere Classified,GPC
Statement 19/09/2016 - 17/10/2016,Corporate Resources,WWW.CIPS.ORG,30/09/2016,132.6,Training Expenses - General,Membership Organizations-Not Elsewhere Classified,GPC
Statement 19/09/2016 - 17/10/2016,Corporate Resources,WWW.CIPS.ORG,30/09/2016,178.5,Training Expenses - General,Membership Organizations-Not Elsewhere Classified,GPC
Statement 19/09/2016 - 17/10/2016,Corporate Resources,WWW.CIPS.ORG,30/09/2016,178.5,Training Expenses - General,Membership Organizations-Not Elsewhere Classified,GPC
Statement 19/09/2016 - 17/10/2016,Corporate Resources,WWW.COMMIDEA.COM,26/09/2016,116.36,IT Equipment - Maintenance,Computer and Data Processing Services,GPC
Statement 19/09/2016 - 17/10/2016,Corporate Resources,WWW.EQUIP4WORK.CO.UK,26/09/2016,511,Operational Equipment - General,"Stationery, Office, and School Supply Stores",GPC
Statement 19/09/2016 - 17/10/2016,Corporate Resources,WWW.FRJONESANDSON.,05/10/2016,47.35,Other Expenditure - General,"Lawn and Garden Supply Stores, Nurseries",GPC
Statement 19/09/2016 - 17/10/2016,Corporate Resources,WWW.GSPRODUCTS.CO.UK,05/10/2016,65.92,Other Equipment & Materials - General,Industrial Supplies Not Elsewhere Classified,GPC
Statement 19/09/2016 - 17/10/2016,Corporate Resources,WWW.JUST EAT.CO.UK,19/09/2016,14.7,Subsistence - General,"Eating Places, Restaurants",GPC
Statement 19/09/2016 - 17/10/2016,Corporate Resources,WWW.OFCOM.ORG.UK,29/09/2016,300,Other Services - General,Professional Services-Not Elsewhere Classified,GPC
Statement 19/09/2016 - 17/10/2016,Corporate Resources,WWW.RICSRECRUIT.CO,21/09/2016,660,Recruitment Advertising - General,Miscellaneous Publishing and  Printing,GPC
Statement 19/09/2016 - 17/10/2016,Corporate Resources,WWW.SHOWDATA.COM,07/10/2016,130,Publicity/Marketing - General,Miscellaneous and Specialty Retail Stores,GPC
Statement 19/09/2016 - 17/10/2016,Corporate Resources,WWW.TRUEWAYSSURVIVAL.C,05/10/2016,45.6,Public Transport -  Staff - General,Sporting and Recreational Camps,GPC
Statement 19/09/2016 - 17/10/2016,E&T,ACTION ON HEARING LOSS,26/09/2016,53.94,Materials - General,"RADIO, TELEVISION, AND STEREO STORES (ELECTRONIC STORES)",GPC
Statement 19/09/2016 - 17/10/2016,E&T,Amazon Svcs Europe SAR,05/10/2016,7.98,Books - General,Book Stores,GPC
Statement 19/09/2016 - 17/10/2016,E&T,Amazon Svcs Europe SAR,05/10/2016,20.8,Books - General,Book Stores,GPC
Statement 19/09/2016 - 17/10/2016,E&T,Amazon UK Marketplace,26/09/2016,27.28,Books - General,Book Stores,GPC
Statement 19/09/2016 - 17/10/2016,E&T,Amazon UK Marketplace,27/09/2016,15.2,Books - General,Book Stores,GPC
Statement 19/09/2016 - 17/10/2016,E&T,Amazon UK Marketplace,04/10/2016,4.65,Books - General,Book Stores,GPC
Statement 19/09/2016 - 17/10/2016,E&T,Amazon UK Marketplace,06/10/2016,10.89,Books - General,Book Stores,GPC
Statement 19/09/2016 - 17/10/2016,E&T,Amazon UK Marketplace,19/09/2016,9.4,Materials - General,Miscellaneous and Specialty Retail Stores,GPC
Statement 19/09/2016 - 17/10/2016,E&T,Amazon UK Marketplace,22/09/2016,21.88,Materials - General,Miscellaneous and Specialty Retail Stores,GPC
Statement 19/09/2016 - 17/10/2016,E&T,Amazon UK Marketplace,26/09/2016,18.99,Materials - General,Miscellaneous and Specialty Retail Stores,GPC
Statement 19/09/2016 - 17/10/2016,E&T,Amazon UK Marketplace,04/10/2016,4.45,Materials - General,Miscellaneous and Specialty Retail Stores,GPC
Statement 19/09/2016 - 17/10/2016,E&T,Amazon UK Marketplace,04/10/2016,13.04,Materials - General,Miscellaneous and Specialty Retail Stores,GPC
Statement 19/09/2016 - 17/10/2016,E&T,Amazon UK Marketplace,05/10/2016,6.99,Materials - General,Miscellaneous and Specialty Retail Stores,GPC
Statement 19/09/2016 - 17/10/2016,E&T,Amazon UK Marketplace,05/10/2016,10.94,Materials - General,Miscellaneous and Specialty Retail Stores,GPC
Statement 19/09/2016 - 17/10/2016,E&T,Amazon UK Marketplace,05/10/2016,5.73,Materials - General,Miscellaneous and Specialty Retail Stores,GPC
Statement 19/09/2016 - 17/10/2016,E&T,Amazon UK Marketplace,05/10/2016,9.92,Materials - General,Miscellaneous and Specialty Retail Stores,GPC
Statement 19/09/2016 - 17/10/2016,E&T,Amazon UK Retail,13/10/2016,37.99,Books - General,Direct Marketers - Other,GPC
Statement 19/09/2016 - 17/10/2016,E&T,AMAZON UK RETAIL AMAZON.C,04/10/2016,14.71,Materials - General,Miscellaneous and Specialty Retail Stores,GPC
Statement 19/09/2016 - 17/10/2016,E&T,ARGOS RETAIL GROUP,27/09/2016,25.44,Materials - General,Discount Stores,GPC
Statement 19/09/2016 - 17/10/2016,E&T,BRITISH STANDARDS,20/09/2016,57,Consultants & Specialists - General,Business Services-Not Elsewhere Classified,GPC
Statement 19/09/2016 - 17/10/2016,E&T,BT REPAYMENT WORKS,20/09/2016,577.09,Communications Equipment - General,Telecommunication Service Including Local and Long,GPC
Statement 19/09/2016 - 17/10/2016,E&T,BT REPAYMENT WORKS,23/09/2016,96.18,Communications Equipment - General,Telecommunication Service Including Local and Long,GPC
Statement 19/09/2016 - 17/10/2016,E&T,BT REPAYMENT WORKS,28/09/2016,19.24,Communications Equipment - General,Telecommunication Service Including Local and Long,GPC
Statement 19/09/2016 - 17/10/2016,E&T,DISCLOSURE SCOT,03/10/2016,25,Other Expenditure - General,Government Services-Not Elsewhere Classified,GPC
Statement 19/09/2016 - 17/10/2016,E&T,DVLA VEHICLE TAX,13/10/2016,232.5,Road Licences - General,Government Services-Not Elsewhere Classified,GPC
Statement 19/09/2016 - 17/10/2016,E&T,DVLA VEHICLE TAX,13/10/2016,232.5,Road Licences - General,Government Services-Not Elsewhere Classified,GPC
Statement 19/09/2016 - 17/10/2016,E&T,DVLA VEHICLE TAX,13/10/2016,167.5,Road Licences - General,Government Services-Not Elsewhere Classified,GPC
Statement 19/09/2016 - 17/10/2016,E&T,EASTMIDLANDSTRAINS,19/09/2016,191.5,Public Transport -  Staff - General,Passenger Railways,GPC
Statement 19/09/2016 - 17/10/2016,E&T,GLASGOW ANGLING LTD,11/10/2016,58.33,Other Expenditure - General,Sporting Goods Stores,GPC
Statement 19/09/2016 - 17/10/2016,E&T,H & BBC PAYMENT,29/09/2016,383.25,Other Transport Costs - General,Government Services-Not Elsewhere Classified,GPC
Statement 19/09/2016 - 17/10/2016,E&T,H & BBC PAYMENT,29/09/2016,383.25,Other Transport Costs - General,Government Services-Not Elsewhere Classified,GPC
Statement 19/09/2016 - 17/10/2016,E&T,HEMMING GROUP LTD,04/10/2016,59,Other Expenditure - General,Catalog Merchants,GPC
Statement 19/09/2016 - 17/10/2016,E&T,LINKEDIN-3410386543,28/09/2016,227.94,Recruitment Advertising - General,Continuity/Subscription Merchants,GPC
Statement 19/09/2016 - 17/10/2016,E&T,NCS VUE WAMITAB TEST,27/09/2016,130,Training Expenses - General,Schools and Educational Services-Not Elsewhere Cla,GPC
Statement 19/09/2016 - 17/10/2016,E&T,NRS HEALTHCARE,19/09/2016,44.85,Cleaning Materials - General,Laboratory/Medical/Dental/Ophthalmic Hospital Equi,GPC
Statement 19/09/2016 - 17/10/2016,E&T,PEAK DEVELOPMENT,04/10/2016,796.2,Other Equipment & Materials - General,Electrical Parts and Equipment,GPC
Statement 19/09/2016 - 17/10/2016,E&T,SJASUPLIES,07/10/2016,17,Other Equipment & Materials - General,Charitable and Social Service Organizations,GPC
Statement 19/09/2016 - 17/10/2016,E&T,SJASUPLIES,14/10/2016,28.33,Printing - General,Charitable and Social Service Organizations,GPC
Statement 19/09/2016 - 17/10/2016,E&T,TELEPHONE SALE,03/10/2016,186.9,Public Transport -  Staff - General,Passenger Railways,GPC
Statement 19/09/2016 - 17/10/2016,E&T,TFL ROAD CHARGE,07/10/2016,11.5,Other Transport Costs - General,"Bridge and Road Fees, Tolls",GPC
Statement 19/09/2016 - 17/10/2016,E&T,TRAINLINE.COM LTD,12/10/2016,13,Other Services - General,Passenger Railways,GPC
Statement 19/09/2016 - 17/10/2016,E&T,TRAINLINE.COM LTD,07/10/2016,25.4,Public Transport -  Staff - General,Passenger Railways,GPC
Statement 19/09/2016 - 17/10/2016,E&T,UPS LTD SHIPPING FEES,23/09/2016,27.88,Private Contractors - General,"Courier Services-Air and Ground, and Freight Forw",GPC
Statement 19/09/2016 - 17/10/2016,E&T,WICKES BUILDING,07/10/2016,69.98,Operational Equipment - General,"Building Materials, Lumber Stores",GPC
Statement 19/09/2016 - 17/10/2016,E&T,WWW.LABELSANDTAGS.CO.U,22/09/2016,120,Materials - General,Miscellaneous Publishing and  Printing,GPC
Statement 19/09/2016 - 17/10/2016,E&T,WWW.PARRS.CO.UK,27/09/2016,53,Protective Clothing & Uniforms - General,Hardware Equipment and Supplies,GPC
Statement 19/09/2016 - 17/10/2016,Leicestershire Highways,Amazon UK Marketplace,10/10/2016,47.96,Books - General,Book Stores,GPC
Statement 19/09/2016 - 17/10/2016,Leicestershire Highways,Amazon UK Marketplace,05/10/2016,27.09,Materials - General,Miscellaneous and Specialty Retail Stores,GPC
Statement 19/09/2016 - 17/10/2016,Leicestershire Highways,AMAZON UK RETAIL AMAZON.C,21/09/2016,51.31,Materials - General,Miscellaneous and Specialty Retail Stores,GPC
Statement 19/09/2016 - 17/10/2016,Leicestershire Highways,DVLA VEHICLE TAX,13/10/2016,652.5,Road Licences - General,Government Services-Not Elsewhere Classified,GPC
Statement 19/09/2016 - 17/10/2016,Leicestershire Highways,DVLA VEHICLE TAX,13/10/2016,652.5,Road Licences - General,Government Services-Not Elsewhere Classified,GPC
Statement 19/09/2016 - 17/10/2016,Leicestershire Highways,DVLA VEHICLE TAX,13/10/2016,652.5,Road Licences - General,Government Services-Not Elsewhere Classified,GPC
Statement 19/09/2016 - 17/10/2016,Leicestershire Highways,DVLA VEHICLE TAX,13/10/2016,652.5,Road Licences - General,Government Services-Not Elsewhere Classified,GPC
Statement 19/09/2016 - 17/10/2016,Public Health,Amazon UK Marketplace,15/10/2016,9.14,IT Equipment - Purchase - Hardware,Miscellaneous and Specialty Retail Stores,GPC
Statement 19/09/2016 - 17/10/2016,Public Health,AMAZON UK RETAIL AMAZON.C,13/10/2016,35.28,Materials - General,Miscellaneous and Specialty Retail Stores,GPC
Statement 19/09/2016 - 17/10/2016,Public Health,ARRIVA PASSENGER S,03/10/2016,65,Public Transport -  Staff - General,Automotive Repair Shops (non-dealer),GPC
Statement 19/09/2016 - 17/10/2016,Public Health,ASDA HOME SHOPPING,20/09/2016,43.69,Provisions - General,"Grocery Stores, Supermarkets",GPC
Statement 19/09/2016 - 17/10/2016,Public Health,BLUEBELL TRADING UK LTD,14/10/2016,83.95,Other Equipment & Materials - General,"Furniture, Home Furnishings and Equipment Stores,",GPC
Statement 19/09/2016 - 17/10/2016,Public Health,EB  SPORT 2.0-THE DIGI,04/10/2016,231.66,Conference - General,Business Services-Not Elsewhere Classified,GPC
Statement 19/09/2016 - 17/10/2016,Public Health,FACEBK FF6MK9AW32,30/09/2016,97.17,Advertising - General,Advertising Services,GPC
Statement 19/09/2016 - 17/10/2016,Public Health,NCP LIMITED,19/09/2016,6.25,Subsistence - General,Automobile Parking Lots and Garages,GPC
Statement 19/09/2016 - 17/10/2016,Public Health,NCP LIMITED,22/09/2016,10,Subsistence - General,Automobile Parking Lots and Garages,GPC
Statement 19/09/2016 - 17/10/2016,Public Health,PARKING LEIC CC,07/10/2016,2,Subsistence - General,Government Services-Not Elsewhere Classified,GPC
Statement 19/09/2016 - 17/10/2016,Public Health,THE ROYAL COLLEGE,12/10/2016,125,Other Agency & Cont Services - General,Charitable and Social Service Organizations,GPC
Statement 19/09/2016 - 17/10/2016,Public Health,TICKETSOURCE LTD,04/10/2016,26.95,Conference - General,"Theatrical Products (Except Motion Pictures), Tick",GPC
Statement 19/09/2016 - 17/10/2016,Public Health,TRAINLINE,26/09/2016,79.97,Public Transport -  Staff - General,Passenger Railways,GPC
Statement 19/09/2016 - 17/10/2016,Public Health,TRAINLINE.COM LTD,12/10/2016,327.93,Conference - General,Passenger Railways,GPC
Statement 19/09/2016 - 17/10/2016,Public Health,WWW.VIKING-DIRECT.CO.U,26/09/2016,8.39,Stationery - General,"Stationary, Office Supplies, Printing and Writing",GPC
"**Amounts stated are net of VAT, except where VAT has not been recovered.",,,,,,,
